Workbook

Sheet Summary (hidden)
A2: FOR THE PROVISION OF PART 2: SPECIALISED MATERIAL HANDLING EQUIPMENT (MHE) FLEET MANAGEMENT SERVICES FOR A PERIOD OF EIGHT (8) YEARS.
A3: GSM 16/11/1495
A4: Points | B4: 90
A6: Bidder No | B6: New Vehicles | C6: Sale and Lease Back | D6: Total Price | E6: Points
A7: Bidder 7 | B7: ='New Vehicle Cost'!B89 ->  | C7: ='S&L Cost Input'!R245 -> R 1,409,462,267.09 | D7: =SUM(B7:C7) ->  | E7: =(1-((D7-MIN($D$7:$D$8))/MIN($D$7:$D$8)))*$B$4 -> 
A8: Bidder 8 | B8: ='New Vehicle Cost'!#REF! ->  | C8: ='S&L Cost Input'!S245 -> R 1,779,140,941.00 | D8: =SUM(B8:C8) ->  | E8: =(1-((D8-MIN($D$7:$D$8))/MIN($D$7:$D$8)))*$B$4 -> 
A10: Name of evaluator:
A11: Signature:
A12: Date:

Sheet New Vehicle Cost (hidden)
A1: MHE | B1: Bidder 7
A2: Category | B2: Monthly Total FML Rental | C2: Short Term Rental cost (monthly rate) | D2: Monthly Managed Maintenance Fee (for anyTransnet owned vehicles)
A3: Forklift <= 3.5 Ton
A4: 60 hr/month | B4: =(('New Vehicle Input'!B4*'MHE Quantities'!$D$12)+('New Vehicle Input'!B5*'MHE Quantities'!$E$12)+('New Vehicle Input'!B6*'MHE Quantities'!$F$12)+('New Vehicle Input'!B7*'MHE Quantities'!$G$12)+('New Vehicle Input'!B8*'MHE Quantities'!$H$12)+('New Vehicle Input'!B9*'MHE Quantities'!$I$12)+('New Vehicle Input'!B10*'MHE Quantities'!$J$12))*'MHE Quantities'!$B$12 -> R830,216.93 | C4: =(('New Vehicle Input'!C4*'MHE Quantities'!$D$12)+('New Vehicle Input'!C5*'MHE Quantities'!$E$12)+('New Vehicle Input'!C6*'MHE Quantities'!$F$12)+('New Vehicle Input'!C7*'MHE Quantities'!$G$12)+('New Vehicle Input'!C8*'MHE Quantities'!$H$12)+('New Vehicle Input'!C9*'MHE Quantities'!$I$12)+('New Vehicle Input'!C10*'MHE Quantities'!$J$12))*'MHE Quantities'!$K$12 -> R2,606,113.73 | D4: =('New Vehicle Input'!D4*'MHE Quantities'!$L$12) -> R48,200.00
A5: 80 hr/month
A6: 100 hr/month
A7: 120 hr/month
A8: 200 hr/month
A9: 250 hr/month
A10: 300 hr/month
A11: 3.5 Ton <Forklift <= 7 Ton
A12: 60 hr/month | B12: =(('New Vehicle Input'!B12*'MHE Quantities'!$D$13)+('New Vehicle Input'!B13*'MHE Quantities'!$E$13)+('New Vehicle Input'!B14*'MHE Quantities'!$F$13)+('New Vehicle Input'!B15*'MHE Quantities'!$G$13)+('New Vehicle Input'!B16*'MHE Quantities'!$H$13)+('New Vehicle Input'!B17*'MHE Quantities'!$I$13)+('New Vehicle Input'!B18*'MHE Quantities'!$J$13))*'MHE Quantities'!$B$13 -> R574,181.47 | C12: =(('New Vehicle Input'!C12*'MHE Quantities'!$D$13)+('New Vehicle Input'!C13*'MHE Quantities'!$E$13)+('New Vehicle Input'!C14*'MHE Quantities'!$F$13)+('New Vehicle Input'!C15*'MHE Quantities'!$G$13)+('New Vehicle Input'!C16*'MHE Quantities'!$H$13)+('New Vehicle Input'!C17*'MHE Quantities'!$I$13)+('New Vehicle Input'!C18*'MHE Quantities'!$J$13))*'MHE Quantities'!$K$13 -> R889,981.29 | D12: =('New Vehicle Input'!D12*'MHE Quantities'!$L$13) -> R29,400.00
A13: 80 hr/month
A14: 100 hr/month
A15: 120 hr/month
A16: 200 hr/month
A17: 250 hr/month
A18: 300 hr/month
A19: 7 Ton <Forklift <= 10 Ton
A20: 60 hr/month | B20: =(('New Vehicle Input'!B20*'MHE Quantities'!$D$14)+('New Vehicle Input'!B21*'MHE Quantities'!$E$14)+('New Vehicle Input'!B22*'MHE Quantities'!$F$14)+('New Vehicle Input'!B23*'MHE Quantities'!$G$14)+('New Vehicle Input'!B24*'MHE Quantities'!$H$14)+('New Vehicle Input'!B25*'MHE Quantities'!$I$14)+('New Vehicle Input'!B26*'MHE Quantities'!$J$14))*'MHE Quantities'!$B$14 -> R29,081.23 | C20: =(('New Vehicle Input'!C20*'MHE Quantities'!$D$14)+('New Vehicle Input'!C21*'MHE Quantities'!$E$14)+('New Vehicle Input'!C22*'MHE Quantities'!$F$14)+('New Vehicle Input'!C23*'MHE Quantities'!$G$14)+('New Vehicle Input'!C24*'MHE Quantities'!$H$14)+('New Vehicle Input'!C25*'MHE Quantities'!$I$14)+('New Vehicle Input'!C26*'MHE Quantities'!$J$14))*'MHE Quantities'!$K$14 -> R1,397,353.16 | D20: =('New Vehicle Input'!D20*'MHE Quantities'!$L$14) -> R6,200.00
A21: 80 hr/month
A22: 100 hr/month
A23: 120 hr/month
A24: 200 hr/month
A25: 250 hr/month
A26: 300 hr/month
A27: 10 Ton <Forklift <= 15 Ton
A28: 60 hr/month | B28: =(('New Vehicle Input'!B28*'MHE Quantities'!$D$15)+('New Vehicle Input'!B29*'MHE Quantities'!$E$15)+('New Vehicle Input'!B30*'MHE Quantities'!$F$15)+('New Vehicle Input'!B31*'MHE Quantities'!$G$15)+('New Vehicle Input'!B32*'MHE Quantities'!$H$15)+('New Vehicle Input'!B33*'MHE Quantities'!$I$15)+('New Vehicle Input'!B34*'MHE Quantities'!$J$15))*'MHE Quantities'!$B$15 -> R102,925.51 | C28: =(('New Vehicle Input'!C28*'MHE Quantities'!$D$15)+('New Vehicle Input'!C29*'MHE Quantities'!$E$15)+('New Vehicle Input'!C30*'MHE Quantities'!$F$15)+('New Vehicle Input'!C31*'MHE Quantities'!$G$15)+('New Vehicle Input'!C32*'MHE Quantities'!$H$15)+('New Vehicle Input'!C33*'MHE Quantities'!$I$15)+('New Vehicle Input'!C34*'MHE Quantities'!$J$15))*'MHE Quantities'!$K$15 -> R425,425.45 | D28: =('New Vehicle Input'!D28*'MHE Quantities'!$L$15) -> R1,600.00
A29: 80 hr/month
A30: 100 hr/month
A31: 120 hr/month
A32: 200 hr/month
A33: 250 hr/month
A34: 300 hr/month
A35: 15 Ton <Forklift <= 25 Ton
A36: 60 hr/month | B36: =(('New Vehicle Input'!B36*'MHE Quantities'!$D$16)+('New Vehicle Input'!B37*'MHE Quantities'!$E$16)+('New Vehicle Input'!B38*'MHE Quantities'!$F$16)+('New Vehicle Input'!B39*'MHE Quantities'!$G$16)+('New Vehicle Input'!B40*'MHE Quantities'!$H$16)+('New Vehicle Input'!B41*'MHE Quantities'!$I$16)+('New Vehicle Input'!B42*'MHE Quantities'!$J$16))*'MHE Quantities'!$B$16 -> R41,273.08 | C36: =(('New Vehicle Input'!C36*'MHE Quantities'!$D$16)+('New Vehicle Input'!C37*'MHE Quantities'!$E$16)+('New Vehicle Input'!C38*'MHE Quantities'!$F$16)+('New Vehicle Input'!C39*'MHE Quantities'!$G$16)+('New Vehicle Input'!C40*'MHE Quantities'!$H$16)+('New Vehicle Input'!C41*'MHE Quantities'!$I$16)+('New Vehicle Input'!C42*'MHE Quantities'!$J$16))*'MHE Quantities'!$K$16 -> R447,812.94 | D36: =('New Vehicle Input'!D36*'MHE Quantities'!$L$16) -> R1,400.00
A37: 80 hr/month
A38: 100 hr/month
A39: 120 hr/month
A40: 200 hr/month
A41: 250 hr/month
A42: 300 hr/month
A43: 25 Ton <Forklift <= 45 Ton
A44: 60 hr/month | B44: =(('New Vehicle Input'!B44*'MHE Quantities'!$D$17)+('New Vehicle Input'!B45*'MHE Quantities'!$E$17)+('New Vehicle Input'!B46*'MHE Quantities'!$F$17)+('New Vehicle Input'!B47*'MHE Quantities'!$G$17)+('New Vehicle Input'!B48*'MHE Quantities'!$H$17)+('New Vehicle Input'!B49*'MHE Quantities'!$I$17)+('New Vehicle Input'!B50*'MHE Quantities'!$J$17))*'MHE Quantities'!$B$17 -> R106,019.91 | C44: =(('New Vehicle Input'!C44*'MHE Quantities'!$D$17)+('New Vehicle Input'!C45*'MHE Quantities'!$E$17)+('New Vehicle Input'!C46*'MHE Quantities'!$F$17)+('New Vehicle Input'!C47*'MHE Quantities'!$G$17)+('New Vehicle Input'!C48*'MHE Quantities'!$H$17)+('New Vehicle Input'!C49*'MHE Quantities'!$I$17)+('New Vehicle Input'!C50*'MHE Quantities'!$J$17))*'MHE Quantities'!$K$17 -> R821,654.27 | D44: =('New Vehicle Input'!D44*'MHE Quantities'!$L$17) -> R1,000.00
A45: 80 hr/month
A46: 100 hr/month
A47: 120 hr/month
A48: 200 hr/month
A49: 250 hr/month
A50: 300 hr/month
A51: Front End Loader
A52: 60 hr/month | B52: =(('New Vehicle Input'!B52*'MHE Quantities'!$D$18)+('New Vehicle Input'!B53*'MHE Quantities'!$E$18)+('New Vehicle Input'!B54*'MHE Quantities'!$F$18)+('New Vehicle Input'!B55*'MHE Quantities'!$G$18)+('New Vehicle Input'!B56*'MHE Quantities'!$H$18)+('New Vehicle Input'!B57*'MHE Quantities'!$I$18)+('New Vehicle Input'!B58*'MHE Quantities'!$J$18))*'MHE Quantities'!$B$18 -> R35,418.74 | C52: =(('New Vehicle Input'!C52*'MHE Quantities'!$D$18)+('New Vehicle Input'!C53*'MHE Quantities'!$E$18)+('New Vehicle Input'!C54*'MHE Quantities'!$F$18)+('New Vehicle Input'!C55*'MHE Quantities'!$G$18)+('New Vehicle Input'!C56*'MHE Quantities'!$H$18)+('New Vehicle Input'!C57*'MHE Quantities'!$I$18)+('New Vehicle Input'!C58*'MHE Quantities'!$J$18))*'MHE Quantities'!$K$18 -> R1,097,981.00 | D52: =('New Vehicle Input'!D52*'MHE Quantities'!$L$18) -> R4,000.00
A53: 80 hr/month
A54: 100 hr/month
A55: 120 hr/month
A56: 200 hr/month
A57: 250 hr/month
A58: 300 hr/month
A59: Reach Stacker
A60: 60 hr/month | B60: =(('New Vehicle Input'!B60*'MHE Quantities'!$D$19)+('New Vehicle Input'!B61*'MHE Quantities'!$E$19)+('New Vehicle Input'!B62*'MHE Quantities'!$F$19)+('New Vehicle Input'!B63*'MHE Quantities'!$G$19)+('New Vehicle Input'!B64*'MHE Quantities'!$H$19)+('New Vehicle Input'!B65*'MHE Quantities'!$I$19)+('New Vehicle Input'!B66*'MHE Quantities'!$J$19))*'MHE Quantities'!$B$19 -> R5,234,936.56 | C60: =(('New Vehicle Input'!C60*'MHE Quantities'!$D$19)+('New Vehicle Input'!C61*'MHE Quantities'!$E$19)+('New Vehicle Input'!C62*'MHE Quantities'!$F$19)+('New Vehicle Input'!C63*'MHE Quantities'!$G$19)+('New Vehicle Input'!C64*'MHE Quantities'!$H$19)+('New Vehicle Input'!C65*'MHE Quantities'!$I$19)+('New Vehicle Input'!C66*'MHE Quantities'!$J$19))*'MHE Quantities'!$K$19 -> R7,236,946.09 | D60: =('New Vehicle Input'!D60*'MHE Quantities'!$L$19) -> R6,600.00
A61: 80 hr/month
A62: 100 hr/month
A63: 120 hr/month
A64: 200 hr/month
A65: 250 hr/month
A66: 300 hr/month
A67: Terminal Tractor
A68: 60 hr/month | B68: =(('New Vehicle Input'!B68*'MHE Quantities'!#REF!)+('New Vehicle Input'!B69*'MHE Quantities'!#REF!)+('New Vehicle Input'!B70*'MHE Quantities'!#REF!)+('New Vehicle Input'!B71*'MHE Quantities'!#REF!)+('New Vehicle Input'!B72*'MHE Quantities'!#REF!)+('New Vehicle Input'!B73*'MHE Quantities'!#REF!)+('New Vehicle Input'!B74*'MHE Quantities'!#REF!))*'MHE Quantities'!#REF! ->  | C68: =(('New Vehicle Input'!C68*'MHE Quantities'!#REF!)+('New Vehicle Input'!C69*'MHE Quantities'!#REF!)+('New Vehicle Input'!C70*'MHE Quantities'!#REF!)+('New Vehicle Input'!C71*'MHE Quantities'!#REF!)+('New Vehicle Input'!C72*'MHE Quantities'!#REF!)+('New Vehicle Input'!C73*'MHE Quantities'!#REF!)+('New Vehicle Input'!C74*'MHE Quantities'!#REF!))*'MHE Quantities'!#REF! ->  | D68: =('New Vehicle Input'!D68*'MHE Quantities'!#REF!) -> 
A69: 80 hr/month
A70: 100 hr/month
A71: 120 hr/month
A72: 200 hr/month
A73: 250 hr/month
A74: 300 hr/month
A75: Trailer - Industrial Type (One ton)
A76: Fixed Rate | B76: =('New Vehicle Input'!B76*'MHE Quantities'!$B$23) -> R2,489.75 | C76: =('New Vehicle Input'!C76*'MHE Quantities'!$K$23) -> R0.00 | D76: =('New Vehicle Input'!D76*'MHE Quantities'!L23) -> R3,400.00
A77: Trailer - Industrial Type (Two ton)
A78: Fixed Rate | B78: =('New Vehicle Input'!B78*'MHE Quantities'!$B$24) -> R3,191.00 | C78: =('New Vehicle Input'!C78*'MHE Quantities'!$K$24) -> R0.00 | D78: =('New Vehicle Input'!D78*'MHE Quantities'!$L$24) -> R0.00
A79: Trailer Light (Luggage trailers)
A80: Fixed Rate | B80: =('New Vehicle Input'!B80*'MHE Quantities'!$B$25) -> R1,935.95 | C80: =('New Vehicle Input'!C80*'MHE Quantities'!$K$25) -> R0.00 | D80: =('New Vehicle Input'!D80*'MHE Quantities'!$L$25) -> R38,600.00
A81: Trailer Medium 1 and 2 axels (+10 Ton, flat bed)
A82: Fixed Rate | B82: =('New Vehicle Input'!B82*'MHE Quantities'!$B$26) -> R445,018.67 | C82: =('New Vehicle Input'!C82*'MHE Quantities'!$K$26) -> R0.00 | D82: =('New Vehicle Input'!D82*'MHE Quantities'!L26) -> R200.00
A83: Trialer Heavy duty 3 and 4 axels (+10 Ton, flat bed)
A84: Fixed Rate | B84: =('New Vehicle Input'!B84*'MHE Quantities'!$B$27) -> R22,382.55 | C84: =('New Vehicle Input'!C84*'MHE Quantities'!$K$27) -> R0.00 | D84: =('New Vehicle Input'!D84*'MHE Quantities'!$L$27) -> R1,800.00
A87: 1 Month Total | B87: =SUM(B4,B12,B20,B28,B36,B44,B52,B60,B68,B76,B78,B80,B82,B84) ->  | C87: =SUM(C4,C12,C20,C28,C36,C44,C52,C60,C68,C76,C78,C80,C82,C84) -> 
A89: 8 Year Total | B89: =SUM(B87:D87)*96 -> 

Sheet S&L Cost Input (hidden)
A1: Sale and Lease back | R1: Bidder 7 | S1: Bidder 8
A2: MAKE | B2: MODEL | C2: Type of Vehicle | D2: Settlement Value | E2: VIN NO | F2: DATE DELIVERED | G2: QUOTE NUMBER | H2: OD | I2: BUS UNIT | J2: LOCATION | K2: Tracking | L2: Service Intervals | M2: Mode of Service (OnSite | N2: Warranties | O2: Inclusive Hours per annum | P2: Sale and Lease Back period | Q2: Estimated Settlement Value up to 31 March 2017 | R2: Monthly Total FML Rental | S2: Monthly Total FML Rental
A3: KHOLEKA | B3: SINGLE AXLE CABLE TRAILER | C3: Trailer | D3: 55,145.61 | E3: AE9B120MBGPJN1005 | F3: 2016-05-10 | G3: TRANS01125 | H3: TRANSNET FREIGHT RAIL | I3: TELECOMS | J3: EMPANGENI | K3: FMX | L3: N/A | M3: YES | N3: 1 year | O3: 0 | P3: 8 years | Q3: 55,145.61 | R3: R2,795.97 | S3: R2,817.23
A4: KHOLEKA | B4: SINGLE AXLE CABLE TRAILER | C4: Trailer | D4: 55,145.61 | E4: AE9B120MBGPJN1006 | F4: 2016-05-10 | G4: TRANS01103 | H4: TRANSNET FREIGHT RAIL | I4: TELECOMS | J4: EMPANGENI | K4: FMX | L4: N/A | M4: YES | N4: 1 year | O4: 0 | P4: 8 years | Q4: 55,145.61 | R4: R2,795.97 | S4: R2,273.48
A5: KHOLEKA | B5: SINGLE AXLE CABLE TRAILER | C5: Trailer | D5: 55,145.61 | E5: AE9B120MBGPJN1007 | F5: 2016-05-10 | G5: TRANS0590 | H5: TRANSNET FREIGHT RAIL | I5: TELECOMS | J5: EMPANGENI | K5: FMX | L5: N/A | M5: YES | N5: 1 year | O5: 0 | P5: 8 years | Q5: 55,145.61 | R5: R2,795.97 | S5: R2,273.48
A6: DOOSAN | B6: D30S-5 | C6: Forklift | D6: 265,755.15 | E6: FDA06-1240-19914 | F6: 2015-05-23 | G6: TRANS0172 | H6: TRANSNET ENGINEERING | I6: WAGONS | J6: DURBAN | K6: FMX | L6: 250hrs | M6: YES | N6: 1000hrs/1year | O6: 4800 | P6: 8 years | Q6: 265,755.15 | R6: R12,889.28 | S6: R24,305.45
A7: DOOSAN | B7: D30S-5 | C7: Forklift | D7: 265,755.15 | E7: FDA06-1240-19919 | F7: 2015-05-23 | G7: TRANS0169 | H7: TRANSNET ENGINEERING | I7: RSE | J7: DURBAN | K7: FMX | L7: 250hrs | M7: YES | N7: 1000hrs/1year | O7: 4800 | P7: 8 years | Q7: 265,755.15 | R7: R12,889.28 | S7: R24,285.69
A8: DOOSAN | B8: D30S-5 | C8: Forklift | D8: 264,588.78 | E8: FDA06-124019913 | F8: 2015-05-23 | G8: TRANS0170 | H8: TRANSNET ENGINEERING | I8: COACHES | J8: DURBAN | K8: FMX | L8: 250hrs | M8: YES | N8: 1000hrs/1year | O8: 4800 | P8: 8 years | Q8: 264,588.78 | R8: R12,872.99 | S8: R24,264.80
A9: Doosan | B9: D30S-5 | C9: Forklift | D9: 265,968.67 | E9: FDA06-1240-19903 | F9: 2015-05-28 | G9: TRANS0177 | H9: TRANSNET ENGINEERING | I9: WAGONS UITENHAGE | J9: UITENHAGE | K9: FMX | L9: 250hrs | M9: YES | N9: 1000hrs/1year | O9: 6000 | P9: 8 years | Q9: 265,968.67 | R9: R14,112.65 | S9: R28,006.30
A10: Doosan | B10: D30S-5 | C10: Forklift | D10: 267,469.91 | E10: FDA061240-19909 | F10: 2015-05-28 | G10: TRANS0178 | H10: TRANSNET ENGINEERING | I10: WAREHOUSE UITENHAGE | J10: UITENHAGE | K10: FMX | L10: 250hrs | M10: YES | N10: 1000hrs/1year | O10: 6000 | P10: 8 years | Q10: 267,469.91 | R10: R14,133.62 | S10: R28,033.19
A11: Doosan | B11: D30S-5 | C11: Forklift | D11: 272,618.30 | E11: FDA06-1240-19906 | F11: 2015-05-28 | G11: TRANS0179 | H11: TRANSNET ENGINEERING | I11: WAREHOUSE UITENHAGE | J11: UITENHAGE | K11: FMX | L11: 250hrs | M11: YES | N11: 1000hrs/1year | O11: 6000 | P11: 8 years | Q11: 272,618.30 | R11: R14,205.54 | S11: R28,125.40
A12: Doosan | B12: D30S-5 | C12: Forklift | D12: 267,469.91 | E12: FDA06-1240-19910 | F12: 2015-05-28 | G12: TRANS0180 | H12: TRANSNET ENGINEERING | I12: WAREHOUSE UITENHAGE | J12: UITENHAGE | K12: FMX | L12: 250hrs | M12: YES | N12: 1000hrs/1year | O12: 6000 | P12: 8 years | Q12: 267,469.91 | R12: R14,133.62 | S12: R28,033.19
A13: Doosan | B13: D30S-5 | C13: Forklift | D13: 267,469.91 | E13: FDA06-1240-19936 | F13: 2015-05-28 | G13: TRANS0184 | H13: TRANSNET ENGINEERING | I13: WAGONS UITENHAGE | J13: UITENHAGE | K13: FMX | L13: 250hrs | M13: YES | N13: 1000hrs/1year | O13: 6000 | P13: 8 years | Q13: 267,469.91 | R13: R14,133.62 | S13: R28,033.19
A14: DOOSAN INFRACORE FORKLIFT | B14: D30S-5 | C14: Forklift | D14: 310,281.42 | E14: FDA06124020202 | F14: 2015-08-06 | G14: TRANS0466 | H14: TRANSNET FREIGHT RAIL | I14: TRANSNET FREIGHT RAIL | J14: DURBAN | K14: FMX | L14: 250hrs | M14: YES | N14: 1000hrs/1year | O14: 5400 | P14: 8 years | Q14: 310,281.42 | R14: R14,180.22 | S14: R26,895.23
A15: DOOSAN | B15: D30S-5 | C15: Forklift | D15: 311,040.57 | E15: FDA06-1240-19929 | F15: 2015-05-23 | G15: TRANS0036 | H15: TRANSNET ENGINEERING | I15: LOCOMOTIVE | J15: BLOEMFONTEIN | K15: FMX | L15: 250hrs | M15: YES | N15: 1000hrs/1year | O15: 3840 | P15: 8 years | Q15: 311,040.57 | R15: R12,555.20 | S15: R22,096.54
A16: DOOSAN | B16: D30S-5 | C16: Forklift | D16: 309,616.96 | E16: FDA06-1240-19923 | F16: 2015-05-23 | G16: TRANS0070 | H16: TRANSNET ENGINEERING | I16: RSE | J16: BLOEMFONTEIN | K16: FMX | L16: 250hrs | M16: YES | N16: 1000hrs/1year | O16: 3600 | P16: 8 years | Q16: 309,616.96 | R16: R12,292.44 | S16: R21,330.76
A17: DOOSAN | B17: D25S-5 | C17: Forklift | D17: 271,044.89 | E17: FDA05124014463 | F17: 2015-06-25 | G17: TRANS0282 | H17: TRANSNET ENGINEERING | I17: Power Electronics | J17: Koedoespoort | K17: FMX | L17: 250hrs | M17: YES | N17: 1000hrs/1year | O17: 3000 | P17: 8 years | Q17: 271,044.89 | R17: R11,162.34 | S17: R18,851.71
A18: DOOSAN | B18: D25S-5 | C18: Forklift | D18: 271,044.89 | E18: FDA05124014462 | F18: 2015-06-25 | G18: TRANS0281 | H18: TRANSNET ENGINEERING | I18: Power Electronics | J18: Koedoespoort | K18: FMX | L18: 250hrs | M18: YES | N18: 1000hrs/1year | O18: 3000 | P18: 8 years | Q18: 271,044.89 | R18: R11,162.34 | S18: R18,851.71
A19: Doosan | B19: D30S-5 | C19: Forklift | D19: 270,317.76 | E19: FDA06-1240-19928 | F19: 2015-05-28 | G19: TRANS0182 | H19: TRANSNET ENGINEERING | I19: WAGONS NEW BRIGHTON | J19: NEW BRIGHTON | K19: FMX | L19: 250hrs | M19: YES | N19: 1000hrs/1year | O19: 6000 | P19: 8 years | Q19: 270,317.76 | R19: R14,182.93 | S19: R28,067.49
A20: DOOSAN | B20: D30S-5 | C20: Forklift | D20: 271,482.15 | E20: FDA06-1240-19907 | F20: 2015-05-28 | G20: TRANS0186 | H20: TRANSNET ENGINEERING | I20: WAGONS NEW BRIGHTON | J20: NEW BRIGHTON | K20: FMX | L20: 250hrs | M20: YES | N20: 1000hrs/1year | O20: 6000 | P20: 8 years | Q20: 271,482.15 | R20: R14,199.20 | S20: R28,088.35
A21: DOOSAN | B21: D30S-5 | C21: Forklift | D21: 271,482.15 | E21: FDA06-1240-19935 | F21: 2015-05-28 | G21: TRANS0183 | H21: TRANSNET ENGINEERING | I21: LOCOMOTIVES SWARTKOPS | J21: SWARTKOPS | K21: FMX | L21: 250hrs | M21: YES | N21: 1000hrs/1year | O21: 6000 | P21: 8 years | Q21: 271,482.15 | R21: R14,199.20 | S21: R28,088.35
A22: Doosan | B22: D30S-5 | C22: Forklift | D22: 272,618.30 | E22: FDA06-124019908 | F22: 2015-05-28 | G22: TRANS0153 | H22: TRANSNET ENGINEERING | I22: WAREHOUSE UITENHAGE | J22: UITENHAGE | K22: FMX | L22: 250hrs | M22: YES | N22: 1000hrs/1year | O22: 6000 | P22: 8 years | Q22: 272,618.30 | R22: R14,215.18 | S22: R28,108.70
A23: DOOSAN | B23: D30S-5 | C23: Forklift | D23: 270,917.46 | E23: FDA06-1240-19915 | F23: 2015-05-23 | G23: TRANS0171 | H23: TRANSNET ENGINEERING | I23: WAGONS | J23: DURBAN | K23: FMX | L23: 250hrs | M23: YES | N23: 1000hrs/1year | O23: 4800 | P23: 8 years | Q23: 270,917.46 | R23: R12,972.77 | S23: R24,381.20
A24: Doosan | B24: D30S-5 | C24: Forklift | D24: 272,618.30 | E24: FDA06-1240-19911 | F24: 2015-05-28 | G24: TRANS0154 | H24: TRANSNET ENGINEERING | I24: RSE UITENHAGE | J24: UITENHAGE | K24: FMX | L24: 250hrs | M24: YES | N24: 1000hrs/1year | O24: 6000 | P24: 8 years | Q24: 272,618.30 | R24: R14,216.06 | S24: R28,108.70
A25: DOOSAN | B25: D30S-5 | C25: Forklift | D25: 281,955.63 | E25: FDA06-1240-20305 | F25: 2015-06-25 | G25: TRANS0254 | H25: TRANSNET ENGINEERING | I25: LOCO MOP | J25: Koedoespoort | K25: FMX | L25: 250hrs | M25: YES | N25: 1000hrs/1year | O25: 3000 | P25: 8 years | Q25: 281,955.63 | R25: R11,323.70 | S25: R19,044.87
A26: Doosan | B26: D30S-5 | C26: Forklift | D26: 281,134.08 | E26: FDA06-1240-20319 | F26: 2015-06-19 | G26: TRANS0294 | H26: TRANSNET ENGINEERING | I26: COACHES | J26: DURBAN | K26: FMX | L26: 250hrs | M26: YES | N26: 1000hrs/1year | O26: 4800 | P26: 8 years | Q26: 281,134.08 | R26: R13,138.69 | S26: R24,469.15
A27: DOOSAN | B27: D30S-5 | C27: Forklift | D27: 286,655.60 | E27: FDA06-1240-20191 | F27: 2015-06-25 | G27: TRANS0248 | H27: TRANSNET ENGINEERING | I27: COACHES | J27: Koedoespoort | K27: FMX | L27: 250hrs | M27: YES | N27: 1000hrs/1year | O27: 3000 | P27: 8 years | Q27: 286,655.60 | R27: R11,396.43 | S27: R19,112.35
A28: DOOSAN | B28: D30S-5 | C28: Forklift | D28: 286,655.60 | E28: FDA06-1240-20313 | F28: 2015-06-25 | G28: TRANS0261 | H28: TRANSNET ENGINEERING | I28: WHEELS | J28: Koedoespoort | K28: FMX | L28: 250hrs | M28: YES | N28: 1000hrs/1year | O28: 3000 | P28: 8 years | Q28: 286,655.60 | R28: R11,396.43 | S28: R19,112.35
A29: DOOSAN | B29: D30S-5 | C29: Forklift | D29: 286,655.60 | E29: FDA06-1240-20190 | F29: 2015-06-25 | G29: TRANS0247 | H29: TRANSNET ENGINEERING | I29: WAGONS | J29: Koedoespoort | K29: FMX | L29: 250hrs | M29: YES | N29: 1000hrs/1year | O29: 3000 | P29: 8 years | Q29: 286,655.60 | R29: R11,396.43 | S29: R19,112.35
A30: DOOSAN | B30: D30S-5 | C30: Forklift | D30: 286,655.60 | E30: FDA06-1240-20195 | F30: 2015-06-25 | G30: TRANS0251 | H30: TRANSNET ENGINEERING | I30: Maintenance | J30: Koedoespoort | K30: FMX | L30: 250hrs | M30: YES | N30: 1000hrs/1year | O30: 3000 | P30: 8 years | Q30: 286,655.60 | R30: R11,396.43 | S30: R19,112.35
A31: DOOSAN | B31: D30S-5 | C31: Forklift | D31: 285,903.54 | E31: FDA06-1240-20189 | F31: 2015-06-25 | G31: TRANS0246 | H31: TRANSNET ENGINEERING | I31: LOCOMOTIVES | J31: Koedoespoort | K31: FMX | L31: 250hrs | M31: YES | N31: 1000hrs/1year | O31: 3000 | P31: 8 years | Q31: 285,903.54 | R31: R11,385.92 | S31: R19,098.88
A32: DOOSAN | B32: D30S-5 | C32: Forklift | D32: 286,655.60 | E32: FDA06-1240-20308 | F32: 2015-06-25 | G32: TRANS0256 | H32: TRANSNET ENGINEERING | I32: LOCOMOTIVES | J32: Koedoespoort | K32: FMX | L32: 250hrs | M32: YES | N32: 1000hrs/1year | O32: 3000 | P32: 8 years | Q32: 286,655.60 | R32: R11,396.43 | S32: R19,112.35
A33: DOOSAN | B33: D30S-5 | C33: Forklift | D33: 286,655.60 | E33: FDA06-1240-20185 | F33: 2015-06-25 | G33: TRANS0245 | H33: TRANSNET ENGINEERING | I33: CAPITAL RFR | J33: Koedoespoort | K33: FMX | L33: 250hrs | M33: YES | N33: 1000hrs/1year | O33: 3000 | P33: 8 years | Q33: 286,655.60 | R33: R11,396.43 | S33: R19,112.35
A34: DOOSAN | B34: D30S-5 | C34: Forklift | D34: 286,656.64 | E34: FDA06-1240-20310 | F34: 2015-06-25 | G34: TRANS0258 | H34: TRANSNET ENGINEERING | I34: LOCO KOMATIPOORT | J34: Koedoespoort | K34: FMX | L34: 250hrs | M34: YES | N34: 1000hrs/1year | O34: 3000 | P34: 8 years | Q34: 286,656.64 | R34: R11,396.44 | S34: R19,112.36
A35: DOOSAN | B35: D30S-5 | C35: Forklift | D35: 286,655.60 | E35: FDA06124020312 | F35: 2015-06-25 | G35: TRANS0260 | H35: TRANSNET ENGINEERING | I35: Foundry | J35: Koedoespoort | K35: FMX | L35: 250hrs | M35: YES | N35: 1000hrs/1year | O35: 3000 | P35: 8 years | Q35: 286,655.60 | R35: R11,396.43 | S35: R19,112.35
A36: DOOSAN | B36: D30S-5 | C36: Forklift | D36: 286,655.60 | E36: FDA06124020311 | F36: 2015-06-25 | G36: TRANS0259 | H36: TRANSNET ENGINEERING | I36: Foundry | J36: Koedoespoort | K36: FMX | L36: 250hrs | M36: YES | N36: 1000hrs/1year | O36: 3000 | P36: 8 years | Q36: 286,655.60 | R36: R11,396.43 | S36: R19,112.35
A37: DOOSAN | B37: D30S-5 | C37: Forklift | D37: 286,655.60 | E37: FDA06124020309 | F37: 2015-06-25 | G37: TRANS0257 | H37: TRANSNET ENGINEERING | I37: Maintenance | J37: Koedoespoort | K37: FMX | L37: 250hrs | M37: YES | N37: 1000hrs/1year | O37: 3000 | P37: 8 years | Q37: 286,655.60 | R37: R11,396.43 | S37: R19,112.35
A38: DOOSAN | B38: D30S-5 | C38: Forklift | D38: 286,655.60 | E38: FDA06124020321 | F38: 2015-06-25 | G38: TRANS0252 | H38: TRANSNET ENGINEERING | I38: Power Electronics | J38: Koedoespoort | K38: FMX | L38: 250hrs | M38: YES | N38: 1000hrs/1year | O38: 3000 | P38: 8 years | Q38: 286,655.60 | R38: R11,396.43 | S38: R19,112.35
A39: DOOSAN | B39: D30S-5 | C39: Forklift | D39: 286,655.60 | E39: FDA06124020318 | F39: 2015-06-25 | G39: TRANS0264 | H39: TRANSNET ENGINEERING | I39: RSE | J39: Koedoespoort | K39: FMX | L39: 250hrs | M39: YES | N39: 1000hrs/1year | O39: 3000 | P39: 8 years | Q39: 286,655.60 | R39: R11,396.43 | S39: R19,112.35
A40: DOOSAN | B40: D30S-5 | C40: Forklift | D40: 286,655.60 | E40: FDA06124020316 | F40: 2015-06-25 | G40: TRANS0262 | H40: TRANSNET ENGINEERING | I40: Coaches | J40: Koedoespoort | K40: FMX | L40: 250hrs | M40: YES | N40: 1000hrs/1year | O40: 3000 | P40: 8 years | Q40: 286,655.60 | R40: R11,396.43 | S40: R19,112.35
A41: DOOSAN | B41: D30S-5 | C41: Forklift | D41: 286,655.60 | E41: FDA06124020317 | F41: 2015-06-25 | G41: TRANS0263 | H41: TRANSNET ENGINEERING | I41: Power Electronics | J41: Koedoespoort | K41: FMX | L41: 250hrs | M41: YES | N41: 1000hrs/1year | O41: 3000 | P41: 8 years | Q41: 286,655.60 | R41: R11,396.43 | S41: R19,112.35
A42: DOOSAN | B42: D30S-5 | C42: Forklift | D42: 286,655.60 | E42: FDA06124020320 | F42: 2015-06-25 | G42: TRANS0253 | H42: TRANSNET ENGINEERING | I42: Power Electronics | J42: Koedoespoort | K42: FMX | L42: 250hrs | M42: YES | N42: 1000hrs/1year | O42: 3000 | P42: 8 years | Q42: 286,655.60 | R42: R11,396.43 | S42: R19,112.35
A43: DOOSAN | B43: D30S-5 | C43: Forklift | D43: 286,655.60 | E43: FDA06124020194 | F43: 2015-06-25 | G43: TRANS0250 | H43: TRANSNET ENGINEERING | I43: Maintenance | J43: Koedoespoort | K43: FMX | L43: 250hrs | M43: YES | N43: 1000hrs/1year | O43: 3000 | P43: 8 years | Q43: 286,655.60 | R43: R11,396.43 | S43: R19,112.35
A44: DOOSAN | B44: D30S-5 | C44: Forklift | D44: 286,655.60 | E44: FDA-06-1240-20306 | F44: 2015-06-25 | G44: TRANS0255 | H44: TRANSNET ENGINEERING | I44: LOCOMOTIVES | J44: Koedoespoort | K44: FMX | L44: 250hrs | M44: YES | N44: 1000hrs/1year | O44: 3000 | P44: 8 years | Q44: 286,655.60 | R44: R11,396.99 | S44: R19,112.35
A45: DOOSAN | B45: D30S-5 | C45: Forklift | D45: 286,230.48 | E45: FDA06-1240-19926 | F45: 2015-05-28 | G45: TRANS0174 | H45: TRANSNET ENGINEERING | I45: MPE UITENHAGE | J45: UITENHAGE | K45: FMX | L45: 250hrs | M45: YES | N45: 1000hrs/1year | O45: 6000 | P45: 8 years | Q45: 286,230.48 | R45: R14,419.51 | S45: R28,090.80
A46: DOOSAN | B46: D30S-5 | C46: Forklift | D46: 286,230.48 | E46: FDA06-1240-19925 | F46: 2015-05-28 | G46: TRANS0175 | H46: TRANSNET ENGINEERING | I46: MPE UITENHAGE | J46: UITENHAGE | K46: FMX | L46: 250hrs | M46: YES | N46: 1000hrs/1year | O46: 6000 | P46: 8 years | Q46: 286,230.48 | R46: R14,419.51 | S46: R28,356.41
A47: DOOSAN | B47: D30S-5 | C47: Forklift | D47: 286,655.60 | E47: FDA06124020193 | F47: 2015-06-25 | G47: TRANS0249 | H47: TRANSNET ENGINEERING | I47: Locomotives | J47: Koedoespoort | K47: FMX | L47: 250hrs | M47: YES | N47: 1000hrs/1year | O47: 3000 | P47: 8 years | Q47: 286,655.60 | R47: R11,400.31 | S47: R19,112.35
A48: DOOSAN | B48: D30S-5 | C48: Forklift | D48: 278,763.57 | E48: FDA06-1240-20203 | G48: TRANS0291 | H48: TRANSNET ENGINEERING | J48: DURBAN | K48: FMX | L48: 250hrs | M48: YES | N48: 1000hrs/1year | O48: 4500 | P48: 8 years | Q48: 278,763.57 | R48: R12,979.44 | S48: R38,992.75
A49: DOOSAN | B49: D30S-5 | C49: Forklift | D49: 302,640.81 | E49: FDA06-1240-19927 | F49: 2015-05-23 | G49: TRANS0031 | H49: TRANSNET ENGINEERING | I49: LOCOMOTIVE | J49: BLOEMFONTEIN | K49: FMX | L49: 250hrs | M49: YES | N49: 1000hrs/1year | O49: 3840 | P49: 8 years | Q49: 302,640.81 | R49: R12,472.45 | S49: R21,962.80
A50: DOOSAN | B50: D30S-5 | C50: Forklift | D50: 302,640.27 | E50: FDA06-1240-19924 | F50: 2015-05-23 | G50: TRANS0035 | H50: TRANSNET ENGINEERING | I50: LOCOMOTIVE | J50: BLOEMFONTEIN | K50: FMX | L50: 250hrs | M50: YES | N50: 1000hrs/1year | O50: 3840 | P50: 8 years | Q50: 302,640.27 | R50: R12,472.45 | S50: R21,962.79
A51: Doosan | B51: D30S-5 | C51: Forklift | D51: 267,469.91 | E51: FDA06-1240-19904 | F51: 2015-05-28 | G51: TRANS0156 | H51: TRANSNET ENGINEERING | I51: WAGONS UITENHAGE | J51: UITENHAGE | K51: FMX | L51: 250hrs | M51: YES | N51: 1000hrs/1year | O51: 6000 | P51: 8 years | Q51: 267,469.91 | R51: R14,172.41 | S51: R28,033.19
A52: DOOSAN | B52: D30S-5 | C52: Forklift | D52: 304,649.25 | E52: FDA06-1240-19918 | F52: 2015-05-23 | G52: TRANS0034 | H52: TRANSNET ENGINEERING | I52: RFR | J52: BLOEMFONTEIN | K52: FMX | L52: 250hrs | M52: YES | N52: 1000hrs/1year | O52: 3600 | P52: 8 years | Q52: 304,649.25 | R52: R12,259.82 | S52: R21,259.86
A53: DOOSAN | B53: D35C-5 | C53: Forklift | D53: 339,547.89 | E53: FDA08124001891 | F53: 2015-06-24 | G53: TRANS0270 | H53: TRANSNET ENGINEERING | I53: Foundry | J53: Koedoespoort | K53: FMX | L53: 250hrs | M53: YES | N53: 1000hrs/1year | O53: 3000 | P53: 8 years | Q53: 339,547.89 | R53: R12,183.14 | S53: R23,724.54
A54: Doosan | B54: D30S-5 | C54: Forklift | D54: 265,041.96 | E54: FDA06-1240-19905 | F54: 2015-05-28 | G54: TRANS0155 | H54: TRANSNET ENGINEERING | I54: WAGONS UITENHAGE | J54: UITENHAGE | K54: FMX | L54: 250hrs | M54: YES | N54: 1000hrs/1year | O54: 6000 | P54: 8 years | Q54: 265,041.96 | R54: R14,170.46 | S54: R27,973.00
A55: DOOSAN | B55: D30S-5 | C55: Forklift | D55: 348,967.78 | E55: FDA06124020856 | F55: 2015-12-01 | G55: TRANS0652 | H55: TRANSNET FREIGHT RAIL | I55: RSE | J55: DURBAN | K55: FMX | L55: 250hrs | M55: YES | N55: 1000hrs/1year | O55: 180000 | P55: 8 years | Q55: 348,967.78 | R55: R209,629.53 | S55: R25,700.39
A56: DOOSAN | B56: D30S-5 | C56: Forklift | D56: 356,894.02 | E56: FDA06124021290 | F56: 2016-03-31 | G56: TRANS1058 | H56: TRANSNET ENGINEERING | I56: RSE | J56: SALT RIVER | K56: FMX | L56: 250hrs | M56: YES | N56: 1000hrs/1year | O56: 4800 | P56: 8 years | Q56: 356,894.02 | R56: R14,462.20 | S56: R25,688.69
A57: DOOSAN | B57: D30S-5 | C57: Forklift | D57: 356,894.02 | E57: FDA06124021289 | F57: 2016-03-31 | G57: TRANS1055 | H57: TRANSNET ENGINEERING | I57: ROTATING MACHINES | J57: SALT RIVER | K57: FMX | L57: 250hrs | M57: YES | N57: 1000hrs/1year | O57: 4800 | P57: 8 years | Q57: 356,894.02 | R57: R14,462.20 | S57: R25,688.69
A58: DOOSAN | B58: D35C-5 | C58: Forklift | D58: 345,182.54 | E58: FDA08-1240-01895 | F58: 2015-06-24 | G58: TRANS0242 | H58: TRANSNET ENGINEERING | I58: WHEELS | J58: Koedoespoort | K58: FMX | L58: 250hrs | M58: YES | N58: 1000hrs/1year | O58: 2400 | P58: 8 years | Q58: 345,182.54 | R58: R12,173.06 | S58: R21,220.02
A59: Doosan | B59: D35C-5 | C59: Forklift | D59: 345,182.54 | E59: FDA08-1240-01899 | F59: 2015-06-24 | G59: TRANS0268 | H59: TRANSNET ENGINEERING | I59: Foundry | J59: Koedoespoort | K59: FMX | L59: 250hrs | M59: YES | N59: 1000hrs/1year | O59: 3000 | P59: 8 years | Q59: 345,182.54 | R59: R12,881.61 | S59: R23,808.76
A60: DOOSAN | B60: D35C-5 | C60: Forklift | D60: 345,182.54 | E60: FDA08-1240-01897 | F60: 2015-06-24 | G60: TRANS0266 | H60: TRANSNET ENGINEERING | I60: WHEELS | J60: Koedoespoort | K60: FMX | L60: 250hrs | M60: YES | N60: 1000hrs/1year | O60: 3000 | P60: 8 years | Q60: 345,182.54 | R60: R12,881.61 | S60: R23,808.76
A61: DOOSAN | B61: D35C-5 | C61: Forklift | D61: 345,182.45 | E61: FDA08124001894 | F61: 2015-06-24 | G61: TRANS0241 | H61: TRANSNET ENGINEERING | I61: Locomotives | J61: Koedoespoort | K61: FMX | L61: 250hrs | M61: YES | N61: 1000hrs/1year | O61: 2400 | P61: 8 years | Q61: 345,182.45 | R61: R12,173.06 | S61: R21,220.02
A62: DOOSAN | B62: D35C-5 | C62: Forklift | D62: 345,182.54 | E62: FDA08124001892 | F62: 2015-06-24 | G62: TRANS0239 | H62: TRANSNET ENGINEERING | I62: RSE | J62: Koedoespoort | K62: FMX | L62: 250hrs | M62: YES | N62: 1000hrs/1year | O62: 2400 | P62: 8 years | Q62: 345,182.54 | R62: R12,173.06 | S62: R21,220.02
A63: DOOSAN | B63: D35C-5 | C63: Forklift | D63: 345,182.54 | E63: FDA08124001893 | F63: 2015-06-24 | G63: TRANS0240 | H63: TRANSNET ENGINEERING | I63: Locomotives | J63: Koedoespoort | K63: FMX | L63: 250hrs | M63: YES | N63: 1000hrs/1year | O63: 2400 | P63: 8 years | Q63: 345,182.54 | R63: R12,173.06 | S63: R21,220.02
A64: DOOSAN | B64: D35C-5 | C64: Forklift | D64: 345,182.54 | E64: FDA08124001890 | F64: 2015-06-24 | G64: TRANS0269 | H64: TRANSNET ENGINEERING | I64: Locomotives | J64: Koedoespoort | K64: FMX | L64: 250hrs | M64: YES | N64: 1000hrs/1year | O64: 3000 | P64: 8 years | Q64: 345,182.54 | R64: R12,881.61 | S64: R23,808.76
A65: DOOSAN | B65: D35C-5 | C65: Forklift | D65: 345,182.54 | E65: FDA08-1240-01896 | F65: 2015-06-24 | G65: TRANS0265 | H65: TRANSNET ENGINEERING | I65: Foundry | J65: Koedoespoort | K65: FMX | L65: 250hrs | M65: YES | N65: 1000hrs/1year | O65: 3000 | P65: 8 years | Q65: 345,182.54 | R65: R12,882.93 | S65: R23,808.76
A66: Doosan | B66: D30S-5 | C66: Forklift | D66: 261,311.30 | E66: FDA06-1240-19921 | F66: 2015-05-28 | G66: TRANS0181 | H66: TRANSNET ENGINEERING | I66: ROTATING MACH, SWARTKOPS | J66: UITENHAGE | K66: FMX | L66: 250hrs | M66: YES | N66: 1000hrs/1year | O66: 6000 | P66: 8 years | Q66: 261,311.30 | R66: R14,146.03 | S66: R27,906.18
A67: Doosan | B67: D30S-5 | C67: Forklift | D67: 265,968.83 | E67: FDA06-1240-19920 | F67: 2015-05-28 | G67: TRANS0185 | H67: TRANSNET ENGINEERING | I67: WAGONS UITENHAGE | J67: UITENHAGE | K67: FMX | L67: 250hrs | M67: YES | N67: 1000hrs/1year | O67: 6000 | P67: 8 years | Q67: 265,968.83 | R67: R14,211.09 | S67: R27,989.60
A68: DOOSAN | B68: D30S-5 | C68: Forklift | D68: 393,418.51 | E68: 000FDA06124021291 | F68: 2016-07-06 | G68: TRANS0941 | H68: TRANSNET ENGINEERING | I68: FOUNDRY | J68: BLOEMFONTEIN | K68: FMX | L68: 250hrs | M68: YES | N68: 1000hrs/1year | O68: 3600 | P68: 8 years | Q68: 393,418.51 | R68: R13,786.65 | S68: R22,618.34
A69: DOOSAN | B69: D30S-5 | C69: Forklift | D69: 408,982.67 | E69: FDA06124021020 | F69: 2016-01-26 | G69: TRANS0467 | H69: TRANSNET FREIGHT RAIL | I69: INFRASTRUCTURE | J69: BLOEMFONTEIN | K69: FMX | L69: 250hrs | M69: YES | N69: 1000hrs/1year | O69: 6000 | P69: 8 years | Q69: 408,982.67 | R69: R16,447.88 | S69: R30,206.80
A70: DOOSAN | B70: D30S-5 | C70: Forklift | D70: 407,574.04 | E70: FDA06124021146 | F70: 2016-01-12 | G70: TRANS0055 | H70: TRANSNET ENGINEERING | I70: WAGONS | J70: KROONSTAD | K70: FMX | L70: 250hrs | M70: YES | N70: 1000hrs/1year | O70: 3000 | P70: 8 years | Q70: 407,574.04 | R70: R13,280.47 | S70: R21,045.70
A71: DOOSAN | B71: D30S-5 | C71: Forklift | D71: 412,908.95 | E71: FDA06124021148 | F71: 2016-01-27 | G71: TRANS0079 | H71: TRANSNET ENGINEERING | I71: WAGONS | J71: SENTRARAND | K71: FMX | L71: 250hrs | M71: YES | N71: 1000hrs/1year | O71: 3000 | P71: 8 years | Q71: 412,908.95 | R71: R13,366.99 | S71: R21,137.20
A72: DOOSAN | B72: D30S-5 | C72: Forklift | D72: 412,909.04 | E72: FDA06124021152 | F72: 2016-01-27 | G72: TRANS0462 | H72: TRANSNET ENGINEERING | I72: WAGONS | J72: SENTRARAND | K72: FMX | L72: 250hrs | M72: YES | N72: 1000hrs/1year | O72: 3000 | P72: 8 years | Q72: 412,909.04 | R72: R13,367.00 | S72: R21,137.20
A73: DOOSAN | B73: D30S-5 | C73: Forklift | D73: 412,909.04 | E73: FDA06124021155 | F73: 2016-01-27 | G73: TRANS0461 | H73: TRANSNET ENGINEERING | I73: WAGONS | J73: SENTRARAND | K73: FMX | L73: 250hrs | M73: YES | N73: 1000hrs/1year | O73: 3000 | P73: 8 years | Q73: 412,909.04 | R73: R13,367.00 | S73: R21,137.20
A74: DOOSAN | B74: D30S-5 | C74: Forklift | D74: 413,050.04 | E74: FDA06124021147 | F74: 2016-01-22 | G74: TRANS0054 | H74: TRANSNET ENGINEERING | I74: WAGONS | J74: LEEUHOF | K74: FMX | L74: 250hrs | M74: YES | N74: 1000hrs/1year | O74: 3000 | P74: 8 years | Q74: 413,050.04 | R74: R13,367.22 | S74: R21,140.97
A75: DOOSAN | B75: D30S-5 | C75: Forklift | D75: 413,364.77 | E75: FDA06124021156 | F75: 2016-01-25 | G75: TRANS0956 | H75: TRANSNET ENGINEERING | I75: LOCOMOTIVES | J75: GERMISTON | K75: FMX | L75: 250hrs | M75: YES | N75: 1000hrs/1year | O75: 3000 | P75: 8 years | Q75: 413,364.77 | R75: R13,373.00 | S75: R21,207.77
A76: DOOSAN | B76: D30S-5 | C76: Forklift | D76: 413,612.32 | E76: FDA06124021150 | F76: 2016-01-22 | G76: TRANS0074 | H76: TRANSNET ENGINEERING | I76: LOCOMOTIVES | J76: COLIGNY | K76: FMX | L76: 250hrs | M76: YES | N76: 1000hrs/1year | O76: 3000 | P76: 8 years | Q76: 413,612.32 | R76: R13,375.61 | S76: R21,213.50
A77: Doosan | B77: D30S-5 4730FFT CAB | C77: Forklift | D77: 415,494.93 | E77: FDA06-1240-21009 | F77: 11/11/2015 | G77: TRANS0587 | H77: TRANSNET FREIGHT RAIL | I77: IOM | J77: CREW BEACONSFIELD | K77: FMX | L77: 250hrs | M77: YES | N77: 1000hrs/1year | O77: 300 | P77: 8 years | Q77: 415,494.93 | R77: R13,453.46 | S77: R13,180.78
A78: DOOSAN | B78: D30S-5 | C78: Forklift | D78: 415,470.79 | E78: FDA06124021161 | F78: 2016-01-22 | G78: TRANS0594 | H78: TRANSNET ENGINEERING | I78: PORTS AUXILARY | J78: GERMISTON | K78: FMX | L78: 250hrs | M78: YES | N78: 1000hrs/1year | O78: 3000 | P78: 8 years | Q78: 415,470.79 | R78: R13,403.33 | S78: R21,245.15
A79: DOOSAN | B79: D30S-5 | C79: Forklift | D79: 415,471.37 | E79: FDA06124021145 | F79: 2016-01-22 | G79: TRANS0591 | H79: TRANSNET ENGINEERING | I79: WAGONS | J79: GERMISTON | K79: FMX | L79: 250hrs | M79: YES | N79: 1000hrs/1year | O79: 3000 | P79: 8 years | Q79: 415,471.37 | R79: R13,403.34 | S79: R21,297.83
A80: DOOSAN | B80: D30S-5 | C80: Forklift | D80: 415,471.37 | E80: FDA06124021160 | F80: 2016-01-22 | G80: TRANS0593 | H80: TRANSNET ENGINEERING | I80: WAGONS | J80: GERMISTON | K80: FMX | L80: 250hrs | M80: YES | N80: 1000hrs/1year | O80: 3000 | P80: 8 years | Q80: 415,471.37 | R80: R13,403.34 | S80: R21,245.16
A81: DOOSAN | B81: D30S-5 | C81: Forklift | D81: 415,471.37 | E81: FDA06124021151 | F81: 2016-01-22 | G81: TRANS0076 | H81: TRANSNET ENGINEERING | I81: WHEELS | J81: GERMISTON | K81: FMX | L81: 250hrs | M81: YES | N81: 1000hrs/1year | O81: 3000 | P81: 8 years | Q81: 415,471.37 | R81: R13,403.34 | S81: R21,245.16
A82: DOOSAN | B82: D30S-5 | C82: Forklift | D82: 415,471.37 | E82: FDA06124021153 | F82: 2016-01-22 | G82: TRANS0592 | H82: TRANSNET ENGINEERING | I82: WAGONS | J82: GERMISTON | K82: FMX | L82: 250hrs | M82: YES | N82: 1000hrs/1year | O82: 3000 | P82: 8 years | Q82: 415,471.37 | R82: R13,403.34 | S82: R21,181.81
A83: DOOSAN | B83: D30S-50 | C83: Forklift | D83: 415,471.37 | E83: FDA06124021154 | F83: 2016-01-22 | G83: TRANS0077 | H83: TRANSNET ENGINEERING | I83: WHEELS | J83: GERMISTON | K83: FMX | L83: 250hrs | M83: YES | N83: 1000hrs/1year | O83: 3000 | P83: 8 years | Q83: 415,471.37 | R83: R13,403.34 | S83: R21,181.81
A84: DOOSAN | B84: D30S-5 | C84: Forklift | D84: 415,471.37 | E84: FDA06124021149 | F84: 2016-01-22 | G84: TRANS0595 | H84: TRANSNET ENGINEERING | I84: WAGONS | J84: GERMISTON | K84: FMX | L84: 250hrs | M84: YES | N84: 1000hrs/1year | O84: 3000 | P84: 8 years | Q84: 415,471.37 | R84: R13,403.34 | S84: R21,245.16
A85: DOOSAN | B85: D35C-5 | C85: Forklift | D85: 345,182.54 | E85: FDA08124001898 | F85: 2015-06-24 | G85: TRANS0267 | H85: TRANSNET ENGINEERING | I85: Manufacturing | J85: Koedoespoort | K85: FMX | L85: 250hrs | M85: YES | N85: 1000hrs/1year | O85: 3000 | P85: 8 years | Q85: 345,182.54 | R85: R12,336.33 | S85: R23,808.76
A86: DOOSAN | B86: D30S-5 | C86: Forklift | D86: 450,498.23 | E86: 000FDA06124021292 | F86: 2016-04-12 | G86: TRANS0918 | H86: TRANSNET ENGINEERING | I86: WAGONS | J86: BLOEMFONTEIN | K86: FMX | L86: 250hrs | M86: YES | N86: 1000hrs/1year | O86: 6000 | P86: 8 years | Q86: 450,498.23 | R86: R17,140.02 | S86: R30,992.39
A87: DOOSAN | B87: D35C-5 | C87: Forklift | D87: 419,408.46 | E87: FDB02113001410 | F87: 2015-06-24 | G87: TRANS0279 | H87: TRANSNET ENGINEERING | I87: Foundry | J87: Koedoespoort | K87: FMX | L87: 250hrs | M87: YES | N87: 1000hrs/1year | O87: 3000 | P87: 8 years | Q87: 419,408.46 | R87: R13,516.10 | S87: R29,944.66
A88: DOOSAN | B88: D40S-5 | C88: Forklift | D88: 419,408.46 | E88: FDB02113001409 | F88: 2015-06-25 | G88: TRANS0278 | H88: TRANSNET ENGINEERING | I88: Foundry | J88: Koedoespoort | K88: FMX | L88: 250hrs | M88: YES | N88: 1000hrs/1year | O88: 3000 | P88: 8 years | Q88: 419,408.46 | R88: R13,516.54 | S88: R26,911.38
A89: AFRIT | B89: 12.6m Tandem Axle Cornerless Bath Tub Semi Trailer | C89: Trailer | D89: 501,179.39 | E89: ADV18238AF05N3291 | F89: 2015-12-13 | G89: TRANS0735 | H89: TRANSNET FREIGHT RAIL | I89: CAB | J89: CITY DEEP | K89: FMX | M89: YES | O89: 12000 | P89: 8 years | Q89: 501,179.39 | R89: R22,737.79 | S89: R17,650.31
A90: AFRIT | B90: 12.6m Tandem Axle Cornerless Bath Tub Semi Trailer | C90: Trailer | D90: 501,179.39 | E90: ADV18238AF03N3289 | F90: 2015-12-18 | G90: TRANS0733 | H90: TRANSNET FREIGHT RAIL | I90: CAB | J90: CITY DEEP | K90: FMX | M90: YES | O90: 12000 | P90: 8 years | Q90: 501,179.39 | R90: R22,739.55 | S90: R17,646.40
A91: AFRIT | B91: 12.6m Tandem Axle Cornerless Bath Tub Semi Trailer | C91: Trailer | D91: 501,179.39 | E91: ADV18238AF07N3293 | F91: 2015-12-11 | G91: TRANS0739 | H91: TRANSNET FREIGHT RAIL | I91: CAB | J91: CITY DEEP | K91: FMX | M91: YES | O91: 12000 | P91: 8 years | Q91: 501,179.39 | R91: R22,737.09 | S91: R17,651.88
A92: AFRIT | B92: 12.6m Tandem Axle Cornerless Bath Tub Semi Trailer | C92: Trailer | D92: 501,179.39 | E92: ADV18238AF04N3290 | F92: 2015-12-15 | G92: TRANS0734 | H92: TRANSNET FREIGHT RAIL | I92: CAB | J92: CITY DEEP | K92: FMX | M92: YES | O92: 12000 | P92: 8 years | Q92: 501,179.39 | R92: R22,738.49 | S92: R17,648.75
A93: AFRIT | B93: 12.6m Tandem Axle Cornerless Bath Tub Semi Trailer | C93: Trailer | D93: 501,179.39 | E93: ADV18238AF10N3296 | F93: 2015-12-09 | G93: TRANS0738 | H93: TRANSNET FREIGHT RAIL | I93: CAB | J93: CITY DEEP | K93: FMX | M93: YES | O93: 12000 | P93: 8 years | Q93: 501,179.39 | R93: R22,736.39 | S93: R17,653.44
A94: AFRIT | B94: 12.6m Tandem Axle Cornerless Bath Tub Semi Trailer | C94: Trailer | D94: 501,179.39 | E94: ADV18238AF06N3292 | F94: 2015-12-12 | G94: TRANS0736 | H94: TRANSNET FREIGHT RAIL | I94: CAB | J94: CITY DEEP | K94: FMX | M94: YES | O94: 12000 | P94: 8 years | Q94: 501,179.39 | R94: R22,737.44 | S94: R17,651.09
A95: AFRIT | B95: 12.6m Tandem Axle Cornerless Bath Tub Semi Trailer | C95: Trailer | D95: 501,179.39 | E95: ADV18238AF02N3288 | F95: 2015-12-16 | G95: TRANS0732 | H95: TRANSNET FREIGHT RAIL | I95: CAB | J95: CITY DEEP | K95: FMX | M95: YES | O95: 12000 | P95: 8 years | Q95: 501,179.39 | R95: R22,738.84 | S95: R17,647.96
A96: AFRIT | B96: 12.6m Tandem Axle Cornerless Bath Tub Semi Trailer | C96: Trailer | D96: 501,179.39 | E96: ADV18238AF11N3297 | F96: 2015-12-17 | G96: TRANS0730 | H96: TRANSNET FREIGHT RAIL | I96: CAB | J96: CITY DEEP | K96: FMX | M96: YES | O96: 12000 | P96: 8 years | Q96: 501,179.39 | R96: R22,739.20 | S96: R17,647.18
A97: AFRIT | B97: 12.6m Tandem Axle Cornerless Bath Tub Semi Trailer | C97: Trailer | D97: 501,179.39 | E97: ADV18238AF09N3295 | F97: 2015-12-10 | G97: TRANS0737 | H97: TRANSNET FREIGHT RAIL | I97: CAB | J97: CITY DEEP | K97: FMX | M97: YES | O97: 12000 | P97: 8 years | Q97: 501,179.39 | R97: R22,736.74 | S97: R17,652.66
A98: AFRIT | B98: 12.6m Tandem Axle Cornerless Bath Tub Semi Trailer | C98: Trailer | D98: 501,263.17 | E98: ADV18238AF01N3287 | F98: 2015-12-14 | G98: TRANS0731 | H98: TRANSNET FREIGHT RAIL | I98: CAB | J98: CITY DEEP | K98: FMX | M98: YES | O98: 12000 | P98: 8 years | Q98: 501,263.17 | R98: R22,740.09 | S98: R17,651.03
A99: AFRIT | B99: 12.6m Tandem Axle Cornerless Bath Tub Semi Trailer | C99: Trailer | D99: 509,901.99 | E99: ADV18239AF07N3428 | F99: 2016-01-12 | G99: TRANS0756 | H99: TRANSNET FREIGHT RAIL | I99: CAB | J99: CITY DEEP | K99: FMX | M99: YES | O99: 12000 | P99: 8 years | Q99: 509,901.99 | R99: R22,873.62 | S99: R17,887.25
A100: AFRIT | B100: 12.6m Tandem Axle Cornerless Bath Tub Semi Trailer | C100: Trailer | D100: 509,901.99 | E100: ADV18240AF09N3441 | F100: 2016-01-12 | G100: TRANS0755 | H100: TRANSNET FREIGHT RAIL | I100: CAB | J100: CITY DEEP | K100: FMX | M100: YES | O100: 12000 | P100: 8 years | Q100: 509,901.99 | R100: R22,873.62 | S100: R17,870.75
A101: AFRIT | B101: 12.6m Tandem Axle Cornerless Bath Tub Semi Trailer | C101: Trailer | D101: 509,901.99 | E101: ADV18240AF06N3438 | F101: 2016-01-12 | G101: TRANS0757 | H101: TRANSNET FREIGHT RAIL | I101: CAB | J101: CITY DEEP | K101: FMX | M101: YES | O101: 12000 | P101: 8 years | Q101: 509,901.99 | R101: R22,873.62 | S101: R17,870.75
A102: AFRIT | B102: 12.6m Tandem Axle Cornerless Bath Tub Semi Trailer | C102: Forklift | D102: 510,165.95 | E102: ADV18239AF03N3424 | F102: 2015-12-22 | G102: TRANS0740 | H102: TRANSNET FREIGHT RAIL | I102: CAB | J102: CITY DEEP | K102: FMX | M102: YES | O102: 12000 | P102: 8 years | Q102: 510,165.95 | R102: R17,813.46 | S102: R17,908.41
A103: AFRIT | B103: 12.6m Tandem Axle Cornerless Bath Tub Semi Trailer | C103: Trailer | D103: 510,165.95 | E103: ADV18239AF09N3430 | F103: 22/12/2015 | G103: TRANS0754 | H103: TRANSNET FREIGHT RAIL | I103: CAB | J103: CITY DEEP | K103: FMX | M103: YES | O103: 12000 | P103: 8 years | Q103: 510,165.95 | R103: R22,912.15 | S103: R17,891.92
A104: AFRIT | B104: 12.6m Tandem Axle Cornerless Bath Tub Semi Trailer | C104: Trailer | D104: 510,165.95 | E104: ADV18240AF03N3435 | F104: 2015-12-22 | G104: TRANS0751 | H104: TRANSNET FREIGHT RAIL | I104: CAB | J104: CITY DEEP | K104: FMX | M104: YES | O104: 12000 | P104: 8 years | Q104: 510,165.95 | R104: R22,872.29 | S104: R17,908.41
A105: AFRIT | B105: 12.6m Tandem Axle Cornerless Bath Tub Semi Trailer | C105: Trailer | D105: 510,165.95 | E105: ADV18239AF10N3431 | F105: 2015-12-22 | G105: TRANS0748 | H105: TRANSNET FREIGHT RAIL | I105: CAB | J105: CITY DEEP | K105: FMX | M105: YES | O105: 12000 | P105: 8 years | Q105: 510,165.95 | R105: R22,872.29 | S105: R17,891.92
A106: AFRIT | B106: 12.6m Tandem Axle Cornerless Bath Tub Semi Trailer | C106: Trailer | D106: 510,165.95 | E106: ADV18239AF01N3422 | F106: 2015-12-22 | G106: TRANS0729 | H106: TRANSNET FREIGHT RAIL | I106: CAB | J106: CITY DEEP | K106: FMX | M106: YES | O106: 12000 | P106: 8 years | Q106: 510,165.95 | R106: R22,872.29 | S106: R17,891.92
A107: AFRIT | B107: 12.6m Tandem Axle Cornerless Bath Tub Semi Trailer | C107: Trailer | D107: 510,165.95 | E107: ADV18239AF05N3426 | F107: 2015-12-22 | G107: TRANS0742 | H107: TRANSNET FREIGHT RAIL | I107: CAB | J107: CITY DEEP | K107: FMX | M107: YES | O107: 12000 | P107: 8 years | Q107: 510,165.95 | R107: R22,872.29 | S107: R17,891.92
A108: AFRIT | B108: 12.6m Tandem Axle Cornerless Bath Tub Semi Trailer | C108: Trailer | D108: 510,165.95 | E108: ADV18239AF06N3427 | F108: 2015-12-22 | G108: TRANS0745 | H108: TRANSNET FREIGHT RAIL | I108: CAB | J108: CITY DEEP | K108: FMX | M108: YES | O108: 12000 | P108: 8 years | Q108: 510,165.95 | R108: R22,872.29 | S108: R17,891.92
A109: AFRIT | B109: 12.6m Tandem Axle Cornerless Bath Tub Semi Trailer | C109: Trailer | D109: 510,165.95 | E109: ADV18240AF02N3434 | F109: 2015-12-22 | G109: TRANS0744 | H109: TRANSNET FREIGHT RAIL | I109: CAB | J109: CITY DEEP | K109: FMX | M109: YES | O109: 12000 | P109: 8 years | Q109: 510,165.95 | R109: R22,872.29 | S109: R17,891.92
A110: AFRIT | B110: 12.6m Tandem Axle Cornerless Bath Tub Semi Trailer | C110: Trailer | D110: 510,165.95 | E110: ADV18239AF04N3425 | F110: 2015-12-22 | G110: TRANS0741 | H110: TRANSNET FREIGHT RAIL | I110: CAB | J110: CITY DEEP | K110: FMX | M110: YES | O110: 12000 | P110: 8 years | Q110: 510,165.95 | R110: R22,872.29 | S110: R17,908.41
A111: AFRIT | B111: 12.6m Tandem Axle Cornerless Bath Tub Semi Trailer | C111: Trailer | D111: 510,165.95 | E111: ADV18240AF07N3439 | F111: 2015-12-22 | G111: TRANS0746 | H111: TRANSNET FREIGHT RAIL | I111: CAB | J111: KASKON | K111: FMX | M111: YES | O111: 12000 | P111: 8 years | Q111: 510,165.95 | R111: R22,872.29 | S111: R17,891.92
A112: AFRIT | B112: 12.6m Tandem Axle Cornerless Bath Tub Semi Trailer | C112: Trailer | D112: 510,165.95 | E112: ADV18240AF05N3437 | F112: 22/12/2015 | G112: TRANS0753 | H112: TRANSNET FREIGHT RAIL | I112: CAB | J112: MARITZBURG | K112: FMX | M112: YES | O112: 12000 | P112: 8 years | Q112: 510,165.95 | R112: R22,912.56 | S112: R17,908.41
A113: AFRIT | B113: 12.6m Tandem Axle Cornerless Bath Tub Semi Trailer | C113: Trailer | D113: 510,165.95 | E113: ADV18240AF04N3436 | F113: 22/12/2015 | G113: TRANS0752 | H113: TRANSNET FREIGHT RAIL | I113: CAB | J113: MARITZBURG | K113: FMX | M113: YES | O113: 12000 | P113: 8 years | Q113: 510,165.95 | R113: R22,912.56 | S113: R17,891.92
A114: AFRIT | B114: 12.6m Tandem Axle Cornerless Bath Tub Semi Trailer | C114: Trailer | D114: 510,165.95 | E114: ADV18240AF01N3433 | F114: 22/12/2015 | G114: TRANS0750 | H114: TRANSNET FREIGHT RAIL | I114: CAB | J114: MARITZBURG | K114: FMX | M114: YES | O114: 12000 | P114: 8 years | Q114: 510,165.95 | R114: R22,912.56 | S114: R17,804.22
A115: AFRIT | B115: 12.6m Tandem Axle Cornerless Bath Tub Semi Trailer | C115: Trailer | D115: 510,165.95 | E115: ADV18239AF11N3432 | F115: 22/12/2015 | G115: TRANS0749 | H115: TRANSNET FREIGHT RAIL | I115: CAB | J115: MARITZBURG | K115: FMX | M115: YES | O115: 12000 | P115: 8 years | Q115: 510,165.95 | R115: R22,912.56 | S115: R17,891.92
A116: AFRIT | B116: 12.6m Tandem Axle Cornerless Bath Tub Semi Trailer | C116: Trailer | D116: 510,165.95 | E116: ADV18239AF08N3429 | F116: 22/12/2015 | G116: TRANS0747 | H116: TRANSNET FREIGHT RAIL | I116: CAB | J116: MARITZBURG | K116: FMX | M116: YES | O116: 12000 | P116: 8 years | Q116: 510,165.95 | R116: R22,912.56 | S116: R17,891.92
A117: DOOSAN | B117: D50C-5 | C117: Forklift | D117: 495,866.70 | E117: FDB04-1130-02640 | F117: 2015-06-25 | G117: TRANS0284 | H117: TRANSNET ENGINEERING | I117: FOUNDRY | J117: Koedoespoort | K117: FMX | L117: 250hrs | M117: YES | N117: 1000hrs/1year | O117: 4800 | P117: 8 years | Q117: 495,866.70 | R117: R20,812.88 | S117: R38,569.16
A118: DOOSAN | B118: D50C-5 | C118: Forklift | D118: 495,866.70 | E118: FDB04-1130-02643 | F118: 2015-06-25 | G118: TRANS0287 | H118: TRANSNET ENGINEERING | I118: RSE | J118: Koedoespoort | K118: FMX | L118: 250hrs | M118: YES | N118: 1000hrs/1year | O118: 4800 | P118: 8 years | Q118: 495,866.70 | R118: R20,812.88 | S118: R38,569.16
A119: DOOSAN | B119: D50C-5 | C119: Forklift | D119: 495,866.70 | E119: FDB04-1330-02633 | F119: 2015-06-25 | G119: TRANS0244 | H119: TRANSNET ENGINEERING | I119: WHEELS | J119: Koedoespoort | K119: FMX | L119: 250hrs | M119: YES | N119: 1000hrs/1year | O119: 2400 | P119: 8 years | Q119: 495,866.70 | R119: R16,623.14 | S119: R25,995.64
A120: DOOSAN | B120: D50C-5 | C120: Forklift | D120: 495,866.70 | E120: FDB04-1130-02632 | F120: 2015-06-25 | G120: TRANS0243 | H120: TRANSNET ENGINEERING | I120: WHEELS | J120: Koedoespoort | K120: FMX | L120: 250hrs | M120: YES | N120: 1000hrs/1year | O120: 2400 | P120: 8 years | Q120: 495,866.70 | R120: R16,623.14 | S120: R25,995.64
A121: DOOSAN | B121: D50C-5 | C121: Forklift | D121: 495,866.70 | E121: FDB04113002644 | F121: 2015-06-25 | G121: TRANS0288 | H121: TRANSNET ENGINEERING | I121: RSE | J121: Koedoespoort | K121: FMX | L121: 250hrs | M121: YES | N121: 1000hrs/1year | O121: 4800 | P121: 8 years | Q121: 495,866.70 | R121: R20,812.88 | S121: R38,569.16
A122: DOOSAN | B122: D50C-5 | C122: Forklift | D122: 495,866.70 | E122: FDB04113002642 | F122: 2015-06-25 | G122: TRANS0286 | H122: TRANSNET ENGINEERING | I122: Wagons | J122: Koedoespoort | K122: FMX | L122: 250hrs | M122: YES | N122: 1000hrs/1year | O122: 4800 | P122: 8 years | Q122: 495,866.70 | R122: R20,812.88 | S122: R38,569.16
A123: DOOSAN | B123: D50C-5 | C123: Forklift | D123: 495,866.70 | E123: FDB04113002641 | F123: 2015-06-25 | G123: TRANS0285 | H123: TRANSNET ENGINEERING | I123: Maintenance | J123: Koedoespoort | K123: FMX | L123: 250hrs | M123: YES | N123: 1000hrs/1year | O123: 4800 | P123: 8 years | Q123: 495,866.70 | R123: R20,812.88 | S123: R38,569.16
A124: DOOSAN | B124: D50C-5 | C124: Forklift | D124: 495,866.70 | E124: FDB04113002634 | F124: 2015-06-25 | G124: TRANS0283 | H124: TRANSNET ENGINEERING | I124: Foundry | J124: Koedoespoort | K124: FMX | L124: 250hrs | M124: YES | N124: 1000hrs/1year | O124: 4800 | P124: 8 years | Q124: 495,866.70 | R124: R20,813.75 | S124: R38,569.16
A125: AFRIT | B125: 12.6m Tandem Axle Cornerless Bath Tub Semi Trailer | C125: Trailer | D125: 527,520.00 | E125: ADV18238AF08N3294 | F125: 2016-03-01 | G125: TRANS0727 | H125: TRANSNET FREIGHT RAIL | I125: CAB | J125: BAYHEAD | K125: FMX | M125: YES | O125: 12000 | P125: 8 years | Q125: 527,520.00 | R125: R23,145.91 | S125: R18,007.15
A126: AFRIT | B126: 12.6m Tandem Axle Cornerless Bath Tub Semi Trailer | C126: Trailer | D126: 527,520.00 | E126: ADV18239AF02N3423 | F126: 2016-03-01 | G126: TRANS0728 | H126: TRANSNET FREIGHT RAIL | I126: CAB | J126: SOUTH COAST ROAD | K126: FMX | M126: YES | O126: 12000 | P126: 8 years | Q126: 527,520.00 | R126: R23,145.91 | S126: R18,007.15
A127: AFRIT | B127: 12.6m Tandem Axle Cornerless Bath Tub Semi Trailer | C127: Trailer | D127: 527,542.53 | E127: ADV18240AF08N3440 | F127: 2016-02-29 | G127: TRANS0743 | H127: TRANSNET FREIGHT RAIL | I127: CAB | J127: KASCON | K127: FMX | M127: YES | O127: 12000 | P127: 8 years | Q127: 527,542.53 | R127: R23,145.99 | S127: R17,991.84
A128: DOOSAN | B128: D40S-5 | C128: Forklift | D128: 552,124.18 | E128: 000FDB02113001417 | F128: 2016-04-12 | G128: TRANS0922 | H128: TRANSNET ENGINEERING | I128: WAGONS | J128: BLOEMFONTEIN | K128: FMX | L128: 250hrs | M128: YES | N128: 1000hrs/1year | O128: 6000 | P128: 8 years | Q128: 552,124.18 | R128: R23,589.78 | S128: R43,657.39
A129: BOBCAT | B129: S630 | C129: Forklift | D129: 524,723.03 | E129: A3NT17655 | F129: 2015-06-25 | G129: TRANS0272 | H129: TRANSNET ENGINEERING | I129: Foundry | J129: Koedoespoort | K129: FMX | M129: YES | O129: 3600 | P129: 8 years | Q129: 524,723.03 | R129: R25,084.82 | S129: R117,965.96
A130: DOOSAN | B130: D70S-5 | C130: Forklift | D130: 557,230.80 | E130: FDB061150-08223 | F130: 2015-05-28 | G130: TRANS0192 | H130: TRANSNET ENGINEERING | I130: WAGONS | J130: UITENHAGE | K130: FMX | L130: 250hrs | M130: YES | N130: 1000hrs/1year | O130: 6000 | P130: 8 years | Q130: 557,230.80 | R130: R32,386.10 | S130: R51,487.28
A131: DOOSAN | B131: D40S-5 | C131: Forklift | D131: 586,542.56 | E131: FDB03113004137 | F131: 2015-12-01 | G131: TRANS0699 | H131: TRANSNET ENGINEERING | I131: LOCOMOTIVES | J131: SALDHANA | K131: FMX | L131: 250hrs | M131: YES | N131: 1000hrs/1year | O131: 6000 | P131: 8 years | Q131: 586,542.56 | R131: R23,978.41 | S131: R44,650.35
A132: DOOSAN | B132: D70S-5 | C132: Forklift | D132: 638,910.83 | E132: FDB0C-1150-08224 | F132: 2015-05-23 | G132: TRANS0072 | H132: TRANSNET ENGINEERING | I132: RSE | J132: BLOEMFONTEIN | K132: FMX | L132: 250hrs | M132: YES | N132: 1000hrs/1year | O132: 3600 | P132: 8 years | Q132: 638,910.83 | R132: R25,974.02 | S132: R38,147.89
A133: DOOSAN | B133: D70S-5 | C133: Forklift | D133: 592,070.11 | E133: FDB0C-1150-08221 | F133: 2015-05-23 | G133: TRANS0039 | H133: TRANSNET ENGINEERING | I133: WHEELS | J133: BLOEMFONTEIN | K133: FMX | L133: 250hrs | M133: YES | N133: 1000hrs/1year | O133: 4800 | P133: 8 years | Q133: 592,070.11 | R133: R29,107.83 | S133: R44,695.76
A134: DOOSAN | B134: D70S-5 | C134: Forklift | D134: 589,025.54 | E134: FDB0C-1150-08222 | F134: 2015-05-23 | G134: TRANS0040 | H134: TRANSNET ENGINEERING | I134: WAGON MAINTENANCE | J134: DE AAR | K134: FMX | L134: 250hrs | M134: YES | N134: 1000hrs/1year | O134: 3600 | P134: 8 years | Q134: 589,025.54 | R134: R25,320.30 | S134: R37,244.89
A135: DOOSAN | B135: D50C-5 | C135: Forklift | D135: 599,007.82 | E135: FDB04113002700 | F135: 2015-12-01 | G135: TRANS0289 | H135: TRANSNET ENGINEERING | I135: Coaches | J135: DURBAN | K135: FMX | L135: 250hrs | M135: YES | N135: 1000hrs/1year | O135: 4800 | P135: 8 years | Q135: 599,007.82 | R135: R22,160.18 | S135: R40,196.08
A136: DOOSAN | B136: D50C-5 | C136: Forklift | D136: 606,741.45 | E136: FDB04113002701 | F136: 2015-12-01 | G136: TRANS0292 | H136: TRANSNET ENGINEERING | I136: Coaches | J136: DURBAN | K136: FMX | L136: 250hrs | M136: YES | N136: 1000hrs/1year | O136: 4800 | P136: 8 years | Q136: 606,741.45 | R136: R22,271.01 | S136: R40,334.59
A137: DOOSAN | B137: D50C-6 | C137: Forklift | D137: 610,788.32 | E137: FDB04113002706 | F137: 2015-12-01 | G137: TRANS0939 | H137: TRANSNET ENGINEERING | I137: B&PD | J137: DURBAN | K137: FMX | L137: 250hrs | M137: YES | N137: 1000hrs/1year | O137: 7200 | P137: 8 years | Q137: 610,788.32 | R137: R26,573.02 | S137: R52,926.91
A138: DOOSAN | B138: D70S-5 | C138: Forklift | D138: 632,490.77 | E138: FDB0C115008247 | F138: 2015-06-25 | G138: TRANS0276 | H138: TRANSNET ENGINEERING | I138: Auxilary Germiston | J138: Koedoespoort | K138: FMX | L138: 250hrs | M138: YES | N138: 1000hrs/1year | O138: 3000 | P138: 8 years | Q138: 632,490.77 | R138: R19,617.15 | S138: R34,289.01
A139: DOOSAN | B139: D50C-5 | C139: Forklift | D139: 678,833.21 | E139: FDA04113002752 | F139: 2016-02-24 | G139: TRANS0694 | H139: TRANSNET ENGINEERING | I139: WHEELS | J139: SALT RIVER | K139: FMX | L139: 250hrs | M139: YES | N139: 1000hrs/1year | O139: 4800 | P139: 8 years | Q139: 678,833.21 | R139: R23,603.90 | S139: R41,421.01
A140: DOOSAN | B140: D70S-5 | C140: Forklift | D140: 642,144.00 | E140: FDB0C115008136 | F140: 2015-07-01 | G140: TRANS0173 | H140: TRANSNET ENGINEERING | I140: WAGONS | J140: DURBAN | K140: FMX | L140: 250hrs | M140: YES | N140: 1000hrs/1year | O140: 4800 | P140: 8 years | Q140: 642,144.00 | R140: R29,872.50 | S140: R45,468.92
A141: DOOSAN | B141: D50C-5 | C141: Forklift | D141: 682,215.58 | E141: FDB04113002791 | F141: 2016-03-30 | G141: TRANS0914 | H141: TRANSNET PORT TERMINAS | I141: TPT | J141: WORKSHOP 17 | K141: FMX | L141: 250hrs | M141: YES | N141: 1000hrs/1year | O141: 1800 | P141: 8 years | Q141: 682,215.58 | R141: R18,316.64 | S141: R25,862.28
A142: DOOSAN | B142: D50C-5 | C142: Forklift | D142: 687,373.16 | E142: FDB04113002753 | F142: 2016-03-18 | G142: TRANS0188 | H142: TRANSNET ENGINEERING | I142: WAGONS | J142: EUITENHAGE | K142: FMX | L142: 250hrs | M142: YES | N142: 1000hrs/1year | O142: 6000 | P142: 8 years | Q142: 687,373.16 | R142: R25,885.87 | S142: R47,801.11
A143: DOOSAN | B143: D50C-5 | C143: Forklift | D143: 692,617.53 | E143: FDB04113002772 | F143: 2016-02-26 | G143: TRANS0600 | H143: TRANSNET ENGINEERING | I143: LOGISTICS | J143: DURBAN | K143: FMX | L143: 250hrs | M143: YES | N143: 1000hrs/1year | O143: 600 | P143: 8 years | Q143: 692,617.53 | R143: R16,322.34 | S143: R20,000.75
A144: DOOSAN | B144: D50C-5 | C144: Forklift | D144: 692,617.53 | E144: FDB04113002774 | F144: 2016-02-16 | G144: TRANS0602 | H144: TRANSNET ENGINEERING | I144: LOGISTICS | J144: DURBAN | K144: FMX | L144: 250hrs | M144: YES | N144: 1000hrs/1year | O144: 3600 | P144: 8 years | Q144: 692,617.53 | R144: R21,662.20 | S144: R35,412.06
A145: DOOSAN | B145: D50C-5 | C145: Forklift | D145: 692,617.53 | E145: FDB04113002773 | F145: 2016-02-26 | G145: TRANS0601 | H145: TRANSNET ENGINEERING | I145: LOGISTICS | J145: DURBAN | K145: FMX | L145: 250hrs | M145: YES | N145: 1000hrs/1year | O145: 3600 | P145: 8 years | Q145: 692,617.53 | R145: R21,667.46 | S145: R35,407.00
A146: DOOSAN | B146: D50C-5 | C146: Forklift | D146: 697,547.21 | E146: FDB04113002790 | F146: 2016-03-18 | G146: TRANS0377 | H146: TRANSNET ENGINEERING | I146: WHEELS | J146: DURBAN | K146: FMX | L146: 250hrs | M146: YES | N146: 1000hrs/1year | O146: 3000 | P146: 8 years | Q146: 697,547.21 | R146: R20,679.35 | S146: R32,366.72
A147: DOOSAN | B147: D50C-5 | C147: Forklift | D147: 715,283.06 | E147: FDB04113002757 | F147: 2016-01-12 | G147: TRANS0078 | H147: TRANSNET ENGINEERING | I147: LOCOMOTIVES | J147: SENTRARAND | K147: FMX | L147: 250hrs | M147: YES | N147: 1000hrs/1year | O147: 3000 | P147: 8 years | Q147: 715,283.06 | R147: R20,908.62 | S147: R32,669.92
A148: DOOSAN | B148: D50C-5 | C148: Forklift | D148: 716,267.88 | E148: FDB04113002751 | F148: 2016-01-12 | G148: TRANS0596 | H148: TRANSNET ENGINEERING | I148: MPE | J148: GERMISTON | K148: FMX | L148: 250hrs | M148: YES | N148: 1000hrs/1year | O148: 3000 | P148: 8 years | Q148: 716,267.88 | R148: R20,922.94 | S148: R32,686.52
A149: DOOSAN | B149: D50S-5 | C149: Forklift | D149: 716,806.75 | E149: FDB04113002721 | F149: 2016-01-26 | G149: TRANS0468 | H149: TRANSNET FREIGHT RAIL | I149: SUPPLY CHAIN | J149: DURBAN | K149: FMX | L149: 250hrs | M149: YES | N149: 1000hrs/1year | O149: 4800 | P149: 8 years | Q149: 716,806.75 | R149: R24,136.52 | S149: R42,073.61
A150: DOOSAN | B150: D70S-5 | C150: Forklift | D150: 743,731.68 | E150: FDB0C115008273 | F150: 2015-11-26 | G150: TRANS0940 | H150: TRANSNET ENGINEERING | I150: WAGONS | J150: DURBAN | K150: FMX | L150: 250hrs | M150: YES | N150: 1000hrs/1year | O150: 4800 | P150: 8 years | Q150: 743,731.68 | R150: R31,387.35 | S150: R47,135.37
A151: DOOSAN | B151: D50C-5 | C151: Forklift | D151: 772,111.97 | E151: FDB04113002767 | F151: 2016-03-30 | G151: TRANS0012 | H151: TRANSNET ENGINEERING | I151: WAGONS | J151: DURBAN | K151: FMX | L151: 250hrs | M151: YES | N151: 1000hrs/1year | O151: 6000 | P151: 8 years | Q151: 772,111.97 | R151: R27,131.09 | S151: R49,305.53
A152: DOOSAN | B152: D50C-5 | C152: Forklift | D152: 772,111.97 | E152: FDB04113002766 | F152: 2016-03-03 | G152: TRANS0014 | H152: TRANSNET ENGINEERING | I152: WAGONS | J152: RICHARDS BAY | K152: FMX | L152: 250hrs | M152: YES | N152: 1000hrs/1year | O152: 6000 | P152: 8 years | Q152: 772,111.97 | R152: R27,107.39 | S152: R49,328.32
A153: DOOSAN | B153: D50C-5 | C153: Forklift | D153: 772,111.97 | E153: FDB04113002768 | F153: 2016-03-03 | G153: TRANS0013 | H153: TRANSNET ENGINEERING | I153: WAGONS | J153: RICHARDS BAY | K153: FMX | L153: 250hrs | M153: YES | N153: 1000hrs/1year | O153: 6000 | P153: 8 years | Q153: 772,111.97 | R153: R27,107.39 | S153: R49,328.32
A154: DOOSAN | B154: D50C-5 | C154: Forklift | D154: 801,059.38 | E154: FDB04113002771 | F154: 2016-03-30 | G154: TRANS0042 | H154: TRANSNET ENGINEERING | I154: WAGONS | J154: RICHARDS BAY | K154: FMX | L154: 250hrs | M154: YES | N154: 1000hrs/1year | O154: 2700 | P154: 8 years | Q154: 801,059.38 | R154: R21,657.54 | S154: R32,660.28
A155: DOOSAN | B155: D70S-5 | C155: Forklift | D155: 807,502.42 | E155: FDB0C115008356 | F155: 2016-03-31 | G155: TRANS01098 | H155: TRANSNET RME | I155: RME | J155: BAYHEAD | K155: FMX | L155: 250hrs | M155: YES | N155: 1000hrs/1year | O155: 7200 | P155: 8 years | Q155: 807,502.42 | R155: R39,977.54 | S155: R62,688.67
A156: DOOSAN | B156: D70S-5 | C156: Forklift | D156: 818,749.76 | E156: 000FDB0C115008417 | F156: 2016-04-25 | G156: TRANS0603 | H156: TRANSNET ENGINEERING | I156: LOCOMOTIVES | J156: DURBAN | K156: FMX | L156: 250hrs | M156: YES | N156: 1000hrs/1year | O156: 3600 | P156: 8 years | Q156: 818,749.76 | R156: R28,743.37 | S156: R40,878.75
A157: DOOSAN | B157: D70S-5 | C157: Forklift | D157: 818,749.76 | E157: 000FDB0C115008409 | F157: 2016-04-25 | G157: TRANS0648 | H157: TRANSNET ENGINEERING | I157: WAGONS | J157: DURBAN | K157: FMX | L157: 250hrs | M157: YES | N157: 1000hrs/1year | O157: 4800 | P157: 8 years | Q157: 818,749.76 | R157: R32,550.32 | S157: R48,214.36
A158: DOOSAN | B158: D70S-5 | C158: Forklift | D158: 818,749.76 | E158: 000FDB0C115008416 | F158: 2016-04-25 | G158: TRANS0604 | H158: TRANSNET ENGINEERING | I158: LOCOMOTIVES | J158: DURBAN | K158: FMX | L158: 250hrs | M158: YES | N158: 1000hrs/1year | O158: 3600 | P158: 8 years | Q158: 818,749.76 | R158: R28,743.37 | S158: R40,878.75
A159: DOOSAN | B159: D70S-5 | C159: Forklift | D159: 856,148.89 | E159: 000FDB0C115008410 | F159: 2016-07-06 | G159: TRANS0925 | H159: TRANSNET ENGINEERING | I159: WAGONS | J159: BLOEMFONTEIN | K159: FMX | L159: 250hrs | M159: YES | N159: 1000hrs/1year | O159: 4800 | P159: 8 years | Q159: 856,148.89 | R159: R33,127.47 | S159: R48,826.83
A160: DESMOND | B160: DEZZI HAULER | C160: HAULER | D160: 836,856.31 | E160: AE9J211AHGDDM0067 | F160: 2016-03-30 | G160: TRANS1057 | H160: TRANSNET ENGINEERING | I160: LOCOMOTIVES | J160: DURBAN | K160: FMX | L160: 250hrs | M160: YES | N160: 1000hrs/1year | O160: 3600 | P160: 8 years | Q160: 836,856.31 | R160: R37,181.10 | S160: R54,941.88
A161: DEZZI | B161: H90T (4X2) HAULAGE TRACTOR | C161: HAULER | D161: 837,519.40 | E161: AE9J211AHGDDM0064 | F161: 2016-03-18 | G161: TRANS0955 | H161: TRANSNET ENGINEERING | I161: WAGONS | J161: CAPITAL PARK | K161: FMX | M161: YES | O161: 6000 | P161: 8 years | Q161: 837,519.40 | R161: R48,472.33 | S161: R79,007.05
A162: DESMOND | B162: DEZZI HAULER | C162: HAULER | D162: 837,519.40 | E162: AE9J211AHGDDM0066 | F162: 2016-03-18 | G162: TRANS1010 | H162: TRANSNET ENGINEERING | I162: WAGONS CAMBRIDGE | J162: UITENHAGE | K162: FMX | L162: 250hrs | M162: YES | N162: 1000hrs/1year | O162: 4800 | P162: 8 years | Q162: 837,519.40 | R162: R42,513.87 | S162: R66,714.25
A163: DESMOND | B163: DEZZI HAULER | C163: HAULER | D163: 896,903.59 | E163: AE9J211AHGDDM0065 | F163: 2016-03-30 | G163: TRANS0460 | H163: TRANSNET ENGINEERING | I163: LOCOMOTIVES | J163: DURBAN | K163: FMX | L163: 250hrs | M163: YES | N163: 1000hrs/1year | O163: 3600 | P163: 8 years | Q163: 896,903.59 | R163: R38,058.37 | S163: R56,017.35
A164: DOOSAN | B164: D70S-5 | C164: Forklift | D164: 973,927.40 | E164: FDB0C115008354 | F164: 2016-01-14 | G164: TRANS0664 | H164: TRANSNET ENGINEERING | I164: WAGON MAINTENANCE | J164: DURBAN | K164: FMX | L164: 250hrs | M164: YES | N164: 1000hrs/1year | O164: 4800 | P164: 8 years | Q164: 973,927.40 | R164: R34,682.52 | S164: R51,461.38
A165: DOOSAN | B165: D70S-5 | C165: Forklift | D165: 1,001,518.42 | E165: FDB0C115008355 | F165: 2016-01-14 | G165: TRANS0929 | H165: TRANSNET ENGINEERING | I165: WAGONS | J165: SOUTH DUNES | K165: FMX | L165: 250hrs | M165: YES | N165: 1000hrs/1year | O165: 4800 | P165: 8 years | Q165: 1,001,518.42 | R165: R35,074.62 | S165: R52,019.62
A166: TERBERG | B166: YT222 TERMINAL TRACTOR | C166: TERMINAL TRACTOR | D166: 1,354,810.51 | E166: XLWYT222XG7257838 | F166: 2016-05-03 | G166: TRANS0671 | H166: TRANSNET FREIGHT RAIL | I166: CAB | J166: CITY DEEP | K166: FMX | M166: YES | O166: 12000 | P166: 8 years | Q166: 1,354,810.51 | R166: R59,289.41 | S166: R104,723.66
A167: TERBERG | B167: YT222 TERMINAL TRACTOR | C167: TERMINAL TRACTOR | D167: 1,354,721.20 | E167: XLWYT2228G7227835 | F167: 2016-05-03 | G167: TRANS0669 | H167: TRANSNET FREIGHT RAIL | I167: CAB | J167: CITY DEEP | K167: FMX | M167: YES | O167: 12000 | P167: 8 years | Q167: 1,354,721.20 | R167: R59,288.19 | S167: R104,722.06
A168: TERBERG | B168: YT222 TERMINAL TRACTOR | C168: TERMINAL TRACTOR | D168: 1,354,810.51 | E168: XLWYT2220G7217834 | F168: 2016-05-03 | G168: TRANS0673 | H168: TRANSNET FREIGHT RAIL | I168: CAB | J168: CITY DEEP | K168: FMX | M168: YES | O168: 12000 | P168: 8 years | Q168: 1,354,810.51 | R168: R59,289.41 | S168: R104,723.66
A169: TERBERG | B169: YT222 TERMINAL TRACTOR | C169: TERMINAL TRACTOR | D169: 1,354,491.89 | E169: XLWYT2222G7247837 | F169: 2016-05-03 | G169: TRANS0674 | H169: TRANSNET FREIGHT RAIL | I169: CAB | J169: CITY DEEP | K169: FMX | M169: YES | O169: 12000 | P169: 8 years | Q169: 1,354,491.89 | R169: R59,292.22 | S169: R104,717.95
A170: TERBERG | B170: YT222 TERMINAL TRACTOR | C170: TERMINAL TRACTOR | D170: 1,354,721.20 | E170: XLWYT2223G7207833 | F170: 2016-05-03 | G170: TRANS0672 | H170: TRANSNET FREIGHT RAIL | I170: CAB | J170: CITY DEEP | K170: FMX | M170: YES | O170: 12000 | P170: 8 years | Q170: 1,354,721.20 | R170: R59,295.99 | S170: R104,722.06
A171: TERBERG | B171: YT222 TERMINAL TRACTOR | C171: TERMINAL TRACTOR | D171: 1,354,721.20 | E171: XLWYT2227G7267839 | F171: 2016-05-03 | G171: TRANS0675 | H171: TRANSNET FREIGHT RAIL | I171: CAB | J171: CITY DEEP | K171: FMX | M171: YES | O171: 12000 | P171: 8 years | Q171: 1,354,721.20 | R171: R59,295.99 | S171: R104,722.06
A172: TERBERG | B172: YT222 TERMINAL TRACTOR | C172: TERMINAL TRACTOR | D172: 1,354,721.20 | E172: XLWYT2225G7237836 | F172: 2016-05-03 | G172: TRANS0670 | H172: TRANSNET FREIGHT RAIL | I172: CAB | J172: CITY DEEP | K172: FMX | M172: YES | O172: 12000 | P172: 8 years | Q172: 1,354,721.20 | R172: R59,295.99 | S172: R104,722.06
A173: TERBERG | B173: YT222 TERMINAL TRACTOR | C173: TERMINAL TRACTOR | D173: 1,354,721.20 | E173: XLWYT2229G7277840 | F173: 2016-05-03 | G173: TRANS0676 | H173: TRANSNET FREIGHT RAIL | I173: CAB | J173: CITY DEEP | K173: FMX | M173: YES | O173: 12000 | P173: 8 years | Q173: 1,354,721.20 | R173: R59,295.99 | S173: R104,722.06
A174: TERBERG | B174: YT222 TERMINAL TRACTOR | C174: TERMINAL TRACTOR | D174: 1,369,066.45 | E174: XLWYT22267367849 | F174: 2016-06-15 | G174: TRANS0668 | H174: TRANSNET FREIGHT RAIL | I174: CAB | J174: BAYHEAD | K174: FMX | M174: YES | O174: 12000 | P174: 8 years | Q174: 1,369,066.45 | R174: R59,567.13 | S174: R104,978.99
A175: TERBERG | B175: YT222 TERMINAL TRACTOR | C175: TERMINAL TRACTOR | D175: 1,369,066.45 | E175: XLWYT2225G7467859 | F175: 2016-06-15 | G175: TRANS0682 | H175: TRANSNET FREIGHT RAIL | I175: CAB | J175: KASCON | K175: FMX | M175: YES | O175: 12000 | P175: 8 years | Q175: 1,369,066.45 | R175: R59,567.13 | S175: R104,978.99
A176: TERBERG | B176: YT222 TERMINAL TRACTOR | C176: TERMINAL TRACTOR | D176: 1,369,066.45 | E176: XLWYT2225G7387851 | F176: 2016-06-15 | G176: TRANS0681 | H176: TRANSNET FREIGHT RAIL | I176: CAB | J176: KASCON | K176: FMX | M176: YES | O176: 12000 | P176: 8 years | Q176: 1,369,066.45 | R176: R59,567.13 | S176: R104,978.99
A177: TERBERG | B177: YT222 TERMINAL TRACTOR | C177: TERMINAL TRACTOR | D177: 1,370,037.58 | E177: XLWYT2220G7447857 | F177: 2016-06-21 | G177: TRANS0667 | H177: TRANSNET FREIGHT RAIL | I177: CAB | J177: BAYHEAD | K177: FMX | M177: YES | O177: 12000 | P177: 8 years | Q177: 1,370,037.58 | R177: R59,593.80 | S177: R104,996.38
A178: TERBERG | B178: YT222 TERMINAL TRACTOR | C178: TERMINAL TRACTOR | D178: 1,370,125.17 | E178: XLWYT2229G7357848 | F178: 2016-06-06 | G178: TRANS0666 | H178: TRANSNET FREIGHT RAIL | I178: CAB | J178: BAYHEAD | K178: FMX | M178: YES | O178: 12000 | P178: 8 years | Q178: 1,370,125.17 | R178: R59,568.67 | S178: R104,997.95
A179: TERBERG | B179: YT222 TERMINAL TRACTOR | C179: TERMINAL TRACTOR | D179: 1,370,928.96 | E179: XLWYT2226G7287841 | F179: 2016-05-30 | G179: TRANS0679 | H179: TRANSNET FREIGHT RAIL | I179: CAB | J179: CITY DEEP | K179: FMX | M179: YES | O179: 12000 | P179: 8 years | Q179: 1,370,928.96 | R179: R59,569.60 | S179: R105,012.34
A180: TERBERG | B180: YT222 TERMINAL TRACTOR | C180: TERMINAL TRACTOR | D180: 1,370,928.96 | E180: XLWYT2228G7457858 | F180: 2016-05-30 | G180: TRANS0677 | H180: TRANSNET FREIGHT RAIL | I180: CAB | J180: CITY DEEP | K180: FMX | M180: YES | O180: 12000 | P180: 8 years | Q180: 1,370,928.96 | R180: R59,569.60 | S180: R105,012.34
A181: TERBERG | B181: YT222 TERMINAL TRACTOR | C181: TERMINAL TRACTOR | D181: 1,370,928.96 | E181: XLWYT2222G7397852 | F181: 2016-05-30 | G181: TRANS0680 | H181: TRANSNET FREIGHT RAIL | I181: CAB | J181: CITY DEEP | K181: FMX | M181: YES | O181: 12000 | P181: 8 years | Q181: 1,370,928.96 | R181: R59,569.60 | S181: R105,012.34
A182: TERBERG | B182: YT222 TERMINAL TRACTOR | C182: TERMINAL TRACTOR | D182: 1,370,928.96 | E182: XLWYT2229G7417854 | F182: 2016-06-21 | G182: TRANS0687 | H182: TRANSNET FREIGHT RAIL | I182: CAB | J182: KASCON | K182: FMX | M182: YES | O182: 12000 | P182: 8 years | Q182: 1,370,928.96 | R182: R59,608.21 | S182: R105,012.34
A183: TERBERG | B183: YT222 TERMINAL TRACTOR | C183: TERMINAL TRACTOR | D183: 1,387,536.34 | E183: XLWYT222XG7317844 | F183: 2016-05-30 | G183: TRANS0678 | H183: TRANSNET FREIGHT RAIL | I183: CAB | J183: CITY DEEP | K183: FMX | M183: YES | O183: 12000 | P183: 8 years | Q183: 1,387,536.34 | R183: R59,810.63 | S183: R105,309.79
A184: TERBERG | B184: YT222 TERMINAL TRACTOR | C184: TERMINAL TRACTOR | D184: 1,387,536.34 | E184: XLWYT2222G7307843 | F184: 2016-06-21 | G184: TRANS0689 | H184: TRANSNET FREIGHT RAIL | I184: CAB | J184: KASCON | K184: FMX | M184: YES | O184: 12000 | P184: 8 years | Q184: 1,387,536.34 | R184: R59,849.25 | S184: R105,309.79
A185: TERBERG | B185: YT222 TERMINAL TRACTOR | C185: TERMINAL TRACTOR | D185: 1,387,536.34 | E185: XLWYT2227G7477860 | F185: 2016-06-21 | G185: TRANS0692 | H185: TRANSNET FREIGHT RAIL | I185: CAB | J185: KASCON | K185: FMX | M185: YES | O185: 12000 | P185: 8 years | Q185: 1,387,536.34 | R185: R59,849.25 | S185: R105,309.79
A186: TERBERG | B186: YT222 TERMINAL TRACTOR | C186: TERMINAL TRACTOR | D186: 1,387,536.34 | E186: XLWYT2228G7377850 | F186: 2016-06-21 | G186: TRANS0690 | H186: TRANSNET FREIGHT RAIL | I186: CAB | J186: KASCON | K186: FMX | M186: YES | O186: 12000 | P186: 8 years | Q186: 1,387,536.34 | R186: R59,849.25 | S186: R105,309.79
A187: TERBERG | B187: YT222 TERMINAL TRACTOR | C187: TERMINAL TRACTOR | D187: 1,387,536.34 | E187: XLWYT2223G7437856 | F187: 2016-06-21 | G187: TRANS0691 | H187: TRANSNET FREIGHT RAIL | I187: CAB | J187: KASCON | K187: FMX | M187: YES | O187: 12000 | P187: 8 years | Q187: 1,387,536.34 | R187: R59,849.25 | S187: R105,309.79
A188: TERBERG | B188: YT222 TERMINAL TRACTOR | C188: TERMINAL TRACTOR | D188: 1,387,450.42 | E188: XLWYT2221G7347847 | F188: 2016-06-21 | G188: TRANS0688 | H188: TRANSNET FREIGHT RAIL | I188: CAB | J188: KASCON | K188: FMX | M188: YES | O188: 12000 | P188: 8 years | Q188: 1,387,450.42 | R188: R59,848.08 | S188: R105,308.25
A189: TERBERG | B189: YT222 TERMINAL TRACTOR | C189: TERMINAL TRACTOR | D189: 1,387,536.34 | E189: XLWYT2223G7297842 | F189: 2016-06-21 | G189: TRANS0683 | H189: TRANSNET FREIGHT RAIL | I189: CAB | J189: KASCON | K189: FMX | M189: YES | O189: 12000 | P189: 8 years | Q189: 1,387,536.34 | R189: R59,849.25 | S189: R105,309.79
A190: TERBERG | B190: YT222 TERMINAL TRACTOR | C190: TERMINAL TRACTOR | D190: 1,387,536.34 | E190: XLWYT2224G7337846 | F190: 2016-06-21 | G190: TRANS0686 | H190: TRANSNET FREIGHT RAIL | I190: CAB | J190: KASCON | K190: FMX | M190: YES | O190: 12000 | P190: 8 years | Q190: 1,387,536.34 | R190: R59,849.25 | S190: R105,309.79
A191: TERBERG | B191: YT222 TERMINAL TRACTOR | C191: TERMINAL TRACTOR | D191: 1,387,536.34 | E191: XLWYT2226G7427855 | F191: 2016-06-21 | G191: TRANS0684 | H191: TRANSNET FREIGHT RAIL | I191: CAB | J191: KASCON | K191: FMX | M191: YES | O191: 12000 | P191: 8 years | Q191: 1,387,536.34 | R191: R59,849.25 | S191: R105,309.79
A192: TERBERG | B192: YT222 TERMINAL TRACTOR | C192: TERMINAL TRACTOR | D192: 1,387,648.17 | E192: XLWYT2227G7477861 | F192: 2016-06-20 | G192: TRANS0685 | H192: TRANSNET FREIGHT RAIL | I192: CAB | J192: KASCON | K192: FMX | M192: YES | O192: 12000 | P192: 8 years | Q192: 1,387,648.17 | R192: R59,849.34 | S192: R105,311.79
A193: TERBERG | B193: YT222 TERMINAL TRACTOR | C193: TERMINAL TRACTOR | D193: 973,927.40 | E193: XLWYT2221G7407853 | F193: 2016-06-17 | G193: TRANS0664 | H193: TRANSNET FREIGHT RAIL | I193: CAB | J193: BELCON | K193: FMX | M193: YES | O193: 12000 | P193: 8 years | Q193: 973,927.40 | R193: R54,211.20 | S193: R98,119.40
A194: TERBERG | B194: YT222 TERMINAL TRACTOR | C194: TERMINAL TRACTOR | D194: 1,387,983.68 | E194: XLWYT2227G7327845 | F194: 2016-06-17 | G194: TRANS0665 | H194: TRANSNET FREIGHT RAIL | I194: CAB | J194: BELCON | K194: FMX | M194: YES | O194: 12000 | P194: 8 years | Q194: 1,387,983.68 | R194: R59,849.63 | S194: R105,317.80
A195: DOOSAN | B195: D50C-5 | C195: Forklift | D195: 1,666,224.46 | E195: 000FDC01113000934 | F195: 2016-06-07 | G195: TRANS0912 | H195: TRANSNET ENGINEERING | I195: KOEDOESPOORT | J195: Koedoespoort | K195: FMX | L195: 250hrs | M195: YES | N195: 1000hrs/1year | O195: 4800 | P195: 8 years | Q195: 1,666,224.46 | R195: R38,042.78 | S195: R58,911.29
A196: KALMAR | B196: DCT90-45E7 | C196: Reach Stacker/ECH | D196: 3,015,058.53 | E196: H30300422 | F196: 2015-12-04 | G196: TRANS0418 | H196: TRANSNET FREIGHT RAIL | I196: TRANSNET FREIGHT RAIL | J196: BELCON | K196: FMX | L196: 500hrs | M196: YES | N196: 2000hrs/1 year | O196: 6000 | P196: 8 years | Q196: 3,015,058.53 | R196: R113,613.02 | S196: R126,361.82
A197: KALMAR | B197: DCT90-45E7 | C197: Reach Stacker/ECH | D197: 3,015,058.53 | E197: H30300421 | F197: 2015-12-04 | G197: TRANS0417 | H197: TRANSNET FREIGHT RAIL | I197: TRANSNET FREIGHT RAIL | J197: BELCON | K197: FMX | L197: 500hrs | M197: YES | N197: 2000hrs/1 year | O197: 6000 | P197: 8 years | Q197: 3,015,058.53 | R197: R113,613.02 | S197: R126,361.82
A198: KALMAR | B198: DCT90-45E7 | C198: Reach Stacker/ECH | D198: 3,016,612.35 | E198: H30300404 | F198: 2015-12-04 | G198: TRANS0420 | H198: TRANSNET FREIGHT RAIL | I198: TRANSNET FREIGHT RAIL | J198: BELCON | K198: FMX | L198: 500hrs | M198: YES | N198: 2000hrs/1 year | O198: 6000 | P198: 8 years | Q198: 3,016,612.35 | R198: R113,638.69 | S198: R126,389.65
A199: KALMAR | B199: DCT90-45E7 | C199: Reach Stacker/ECH | D199: 3,016,612.35 | E199: H30300416 | F199: 2015-12-04 | G199: TRANS0422 | H199: TRANSNET FREIGHT RAIL | I199: TRANSNET FREIGHT RAIL | J199: BELCON | K199: FMX | L199: 500hrs | M199: YES | N199: 2000hrs/1 year | O199: 6000 | P199: 8 years | Q199: 3,016,612.35 | R199: R113,638.69 | S199: R126,389.65
A200: KALMAR | B200: DCT90-45E7 | C200: Reach Stacker/ECH | D200: 3,016,612.35 | E200: H30300405 | F200: 2015-12-04 | G200: TRANS0421 | H200: TRANSNET FREIGHT RAIL | I200: TRANSNET FREIGHT RAIL | J200: BELCON | K200: FMX | L200: 500hrs | M200: YES | N200: 2000hrs/1 year | O200: 6000 | P200: 8 years | Q200: 3,016,612.35 | R200: R113,638.69 | S200: R126,389.65
... 44 more rows

Sheet New Vehicle Input (hidden)
A1: MHE | B1: Bidder 7
A2: Category | B2: Monthly Total FML Rental | C2: Short Term Rental cost (monthly rate) | D2: Monthly Managed Maintenance Fee (for anyTransnet owned vehicles)
A3: Forklift <= 3.5 Ton
A4: 60 hr/month | B4: R6,686.41 | C4: R10,363.93 | D4: R200.00
A5: 80 hr/month | B5: R7,019.54 | C5: R10,880.29
A6: 100 hr/month | B6: R7,547.49 | C6: R11,698.61
A7: 120 hr/month | B7: R7,880.62 | C7: R12,214.96
A8: 200 hr/month | B8: R9,359.06 | C8: R14,506.54
A9: 250 hr/month | B9: R10,290.23 | C9: R15,949.86
A10: 300 hr/month | B10: R11,220.33 | C10: R17,391.52
A11: 3.5 Ton <Forklift <= 7 Ton
A12: 60 hr/month | B12: R8,990.30 | C12: R13,934.96 | D12: R200.00
A13: 80 hr/month | B13: R9,349.05 | C13: R14,491.03
A14: 100 hr/month | B14: R9,963.93 | C14: R15,444.09
A15: 120 hr/month | B15: R10,322.69 | C15: R16,000.17
A16: 200 hr/month | B16: R12,524.98 | C16: R19,413.72
A17: 250 hr/month | B17: R13,932.67 | C17: R21,595.64
A18: 300 hr/month | B18: R15,341.43 | C18: R23,779.21
A19: 7 Ton <Forklift <= 10 Ton
A20: 60 hr/month | B20: R23,370.11 | C20: R36,223.67 | D20: R200.00
A21: 80 hr/month | B21: R24,087.63 | C21: R37,335.82
A22: 100 hr/month | B22: R25,495.89 | C22: R39,518.63
A23: 120 hr/month | B23: R26,213.41 | C23: R40,630.78
A24: 200 hr/month | B24: R30,944.35 | C24: R47,963.74
A25: 250 hr/month | B25: R34,800.17 | C25: R53,940.26
A26: 300 hr/month | B26: R38,657.07 | C26: R59,918.45
A27: 10 Ton <Forklift <= 15 Ton
A28: 60 hr/month | B28: R34,069.33 | C28: R52,807.47 | D28: R200.00
A29: 80 hr/month | B29: R34,786.85 | C29: R53,919.61
A30: 100 hr/month | B30: R36,752.15 | C30: R56,965.84
A31: 120 hr/month | B31: R37,469.67 | C31: R58,077.98
A32: 200 hr/month | B32: R42,178.11 | C32: R65,376.07
A33: 250 hr/month | B33: R46,013.58 | C33: R71,321.05
A34: 300 hr/month | B34: R49,847.98 | C34: R77,264.36
A35: 15 Ton <Forklift <= 25 Ton
A36: 60 hr/month | B36: R35,154.19 | C36: R54,489.00 | D36: R200.00
A37: 80 hr/month | B37: R35,871.70 | C37: R55,601.14
A38: 100 hr/month | B38: R37,876.99 | C38: R58,709.34
A39: 120 hr/month | B39: R38,594.51 | C39: R59,821.48
A40: 200 hr/month | B40: R43,302.95 | C40: R67,119.57
A41: 250 hr/month | B41: R47,138.42 | C41: R73,064.55
A42: 300 hr/month | B42: R50,972.81 | C42: R79,007.86
A43: 25 Ton <Forklift <= 45 Ton
A44: 60 hr/month | B44: R91,761.46 | C44: R142,230.26 | D44: R200.00
A45: 80 hr/month | B45: R93,452.74 | C45: R144,851.75
A46: 100 hr/month | B46: R95,144.03 | C46: R147,473.24
A47: 120 hr/month | B47: R96,835.31 | C47: R150,094.73
A48: 200 hr/month | B48: R110,607.85 | C48: R171,442.17
A49: 250 hr/month | B49: R121,648.24 | C49: R188,554.78
A50: 300 hr/month | B50: R132,689.70 | C50: R205,669.04
A51: Front End Loader
A52: 60 hr/month | B52: R31,043.92 | C52: R48,118.08 | D52: R200.00
A53: 80 hr/month
A54: 100 hr/month | B54: R31,979.77 | C54: R49,568.64
A55: 120 hr/month | B55: R32,447.69 | C55: R50,293.92
A56: 200 hr/month | B56: R35,418.74 | C56: R54,899.05
A57: 250 hr/month | B57: R37,322.17 | C57: R57,849.37
A58: 300 hr/month | B58: R39,224.53 | C58: R60,798.02
A59: Reach Stacker
A60: 60 hr/month | B60: R118,659.38 | C60: R183,922.04 | D60: R200.00
A61: 80 hr/month
A62: 100 hr/month | B62: R126,934.37 | C62: R196,748.27
A63: 120 hr/month | B63: R131,071.86 | C63: R203,161.38
A64: 200 hr/month | B64: R155,394.15 | C64: R240,860.93
A65: 250 hr/month | B65: R173,257.12 | C65: R268,548.54
A66: 300 hr/month | B66: R191,120.10 | C66: R296,236.15
A67: Terminal Tractor
A68: 60 hr/month | B68: R11,278.62 | C68: R17,481.86 | D68: R200.00
A69: 80 hr/month
A70: 100 hr/month | B70: R11,996.13 | C70: R18,594.01
A71: 120 hr/month | B71: R12,354.89 | C71: R19,150.08
A72: 200 hr/month | B72: R14,656.81 | C72: R22,718.06
A73: 250 hr/month | B73: R16,131.99 | C73: R25,004.59
A74: 300 hr/month | B74: R17,607.17 | C74: R27,291.12
A75: Trailer - Industrial Type (One ton)
A76: Fixed Rate | B76: R2,489.75 | C76: R3,859.12 | D76: R200.00
A77: Trailer - Industrial Type (Two ton)
A78: Fixed Rate | B78: R3,191.00 | C78: R4,946.05 | D78: R200.00
A79: Trailer Light (Luggage trailers)
A80: Fixed Rate | B80: R1,935.95 | C80: R3,000.72 | D80: R200.00
A81: Trailer Medium 1 and 2 axels (+10 Ton, flat bed)
A82: Fixed Rate | B82: R13,485.41 | C82: R20,902.39 | D82: R200.00
A83: Trailer Heavy duty 3 and 4 axels (+10 Ton, flat bed)
A84: Fixed Rate | B84: R22,382.55 | C84: R34,692.95 | D84: R200.00

Sheet Instructions
E2: Click links for
E3: Pricing And Delvery Schedule
B5: FOR THE PROVISION OF SPECIALISED MATERIAL HANDLING EQUIPMENT (MHE) FLEET MANAGEMENT SERVICES FOR A PERIOD OF EIGHT (8) YEARS.
B6: ANNEXURE D: PRICING SCHEDULE
B7: RFP: TCC/2023/08/0001/40193/RFP
B8: Instructions for completion of the Pricing and Delivery Schedule template | E8: This cell is editable
C9: Transnet Ltd SOC | E9: The coloumn(s) is Mandatory
E10: This is NOT editable contains formula
C11: All the Rand Values must be filled in as per the pricing workbook to 2 decimal places | E11: This is NOT editable
B14: Columns | C14: There are a total of 29 columns (column B to AC) in the pricing schedule. Respondents are required to complete all fields in green coloured rows in the pricing schedule. Respondents to put values FOR ONE (1) UNIT only. Respondents who do not quote for all line items in columns L,M, N, O, P, S, Z and AB will be eliminated. Respondents who do not complete any other fields in the pricng schedule, may be eliminated.
B15: Monthly Total FML Rental | C15: The Monthly Total FML Rental per vehicle (column Q) must comprise the following costs (i.e. all inclusive):
C16: The Monthly Finance / Rental Cost (column K).
C17: The Monthly Maintenance Cost (including FIVE replacement sets of tyres) (column L).
C18: The Monthly Admin Cost (column M).
C19: Annual load testing and machine calibration cost (column N)
C20: Other Monthly Costs (Tracking etc.) (column P)
C21: Annual twist lock calibration costs (column O).
B22: Short Term Rental | C22: The Monthly Short Term Rental cost per vehicle must be completed (column Z).
B23: Monthly Managed Maintenance | C23: The Monthly Managed Maintenance fee per vehicle must be completed (column AB).
B24: Grand Total | C24: Grand Total AC = Column S + Z+ AB.
B26: Important Notes:
B27: 1 | C27: Prices in South African Rands, including VAT.
B28: 2 | C28: Quotes must be based on quality & reliable MHE in order to achieve a minimum of 95% availability.
B29: 3 | C29: Contract Parameter - maximum eight (8) years for FML
B30: 4 | C30: Respondents MUST quote for every single MHE type per line item based on quantity on one (1) per line item. Respondents who do NOT quote for every line item will be disqaulified.
B31: 5 | C31: Should the Respondents be unable to provide Transnet with the specific MHE type and capacity indicated at listed price, the Respondent must provide Transnet with a similar (equal) or better alternative e.g. comparable MHE models and/or capacity with the same minimum features.
B32: 6 | C32: Respondents must advise when the prices will escalate and against which factors, and periods. Supplementary notes must be provided explaining in detail
B33: 7 | C33: The Monttly costs is caluclated using Columns S, Z and AB mulitplied by the estimated MHE Qaunitties. .
B34: 8 | C34: The Summary is calculated from the Monthly costs

Sheet Summary MHE
C2: =Instructions!B5 -> FOR THE PROVISION OF SPECIALISED MATERIAL HANDLING EQUIPMENT (MHE) FLEET MANAGEMENT SERVICES FOR A PERIOD OF EIGHT (8) YEARS.
F3: Click links for
C4: =Instructions!B6 -> ANNEXURE D: PRICING SCHEDULE | F4: Pricing And Delvery Schedule
C5: =Instructions!B7 -> RFP: TCC/2023/08/0001/40193/RFP
B7: Bidder Name | C7: Monthly Total FML rental | D7: Short Term rental cost (monthly rate) | E7: Monthly Managed Maintenance Fee (for any Transnet owned Equipment) | F7: Total Price
B8: =Instructions!C10 -> 0 | C8: ='Monthly Cost'!C94*96 -> R0.00 | D8: ='Monthly Cost'!D94*96 -> R0.00 | E8: ='Monthly Cost'!E94*96 -> R0.00 | F8: =SUM(C8:E8) -> R0.00

Sheet Pricing and Delivery Schedule
A1: TRANSNET RFP XXX - RFP ANNEXURE XXX - PRICING SCHEDULE- MHE FLEET MANAGEMENT SERVICES FOR FML, STR AND MM
A2: =Instructions!B5 -> FOR THE PROVISION OF SPECIALISED MATERIAL HANDLING EQUIPMENT (MHE) FLEET MANAGEMENT SERVICES FOR A PERIOD OF EIGHT (8) YEARS.
A4: ANNEXURE D: PRICING SCHEDULE – EXCLUDING INSURANCE - FOR EVALUATION PURPOSES | G4: Click links for
A5: =Instructions!B7 -> RFP: TCC/2023/08/0001/40193/RFP | G5: Instructions
A8: DO NOT EDIT | B8: Mandatory Information required | K8: Mandatory (For Evaluation Purposes) | Q8: Mandatory (For Evaluation Purposes) | T8: Mandatory Information required | Z8: Mandatory (For Evaluation Purposes) | AA8: Mandatory Information required | AB8: Mandatory (For Evaluation Purposes) | AC8: DO NOT EDIT
A9: Category | B9: Make and Model | C9: Original OEM Price | D9: Exchanged rate used at time of pricing | E9: Bidders Best Fixed Discount % for term of contract | F9: Bidders Best Discounted Price | G9: FML Lease Period (8 yrs) (must be in Months only) DO NOT CHANGE THE PERIODS | H9: Interest Rate linked to Prime | I9: % RV used in Calculation | J9: Residual Value | K9: Monthly Finance / Rental Cost (Excl. VAT) | L9: Monthly Maintenance Cost (including 5 sets of tyres) (Excl. VAT) | M9: Monthly Admin Cost (Excl. VAT) | N9: Annual load testing and machine calibration cost (can this be included in the FLM) (Excl. VAT) | O9: Annual twist lock calibration costs (can this be included in the FLM) (Excl. VAT) | P9: Other Monthly Costs (Tracking etc.) (Excl. VAT) | Q9: Monthly Total Finance / Rental Cost (Excl. VAT) - for one unit only | R9: VAT @15% | S9: Monthly Total Finance / Rental Cost (Incl. VAT) - for one unit only | T9: Maintenance Cost Per Hour (CPH) used in Calculation (Incl. VAT) | U9: Maintenance Excess CPH for Excess Monthly Kms (Incl. VAT) | V9: Depreciation Excess CPH for Excess Monthly Kms (Incl. VAT) | W9: Total Excess CPH for Excess Monthly Kms | X9: Delivery Lead Time for New MHE (months) | Y9: Monthly Short Term Rental (% of monthly FML) (Incl. VAT) | Z9: Short Term Rental cost (monthly rate in rands) (Incl. VAT) | AA9: Total Sum of Monthly total FML and Total short term Rental (S + Z) | AB9: Monthly Managed Maintenance Admin Fee (for any Transnet owned Equipment) | AC9: Grand Total (Column S+ Z+ AB will be used to calculate FML, STR and MM)
A10: ='MHE Quantities'!C62 -> Forklift <= 3.5 Ton
A11: 60 hr/month | G11: 96 | Q11: =K11+L11+M11+N11+O11+P11 -> R 0.00 | R11: =Q11*15% -> R 0.00 | S11: =Q11+R11 -> R0.00 | Y11: =IFERROR(Z11/Q11,0) -> 0% | AA11: =S11+Z11 -> R0.00 | AC11: =S11+Z11+AB11 -> R 0.00
A12: 80 hr/month | G12: 96 | Q12: =K12+L12+M12+N12+O12+P12 -> R 0.00 | R12: =Q12*15% -> R 0.00 | S12: =Q12+R12 -> R0.00 | Y12: 0% | AA12: =S12+Z12 -> R0.00
A13: 100 hr/month | G13: 96 | Q13: R 0.00 | R13: R 0.00 | S13: R0.00 | Y13: 0% | AA13: =S13+Z13 -> R0.00
A14: 120 hr/month | G14: 96 | Q14: R 0.00 | R14: R 0.00 | S14: R0.00 | Y14: 0% | AA14: R0.00
A15: 200 hr/month | G15: 96 | Q15: R 0.00 | R15: R 0.00 | S15: R0.00 | Y15: 0% | AA15: R0.00
A16: 250 hr/month | G16: 96 | Q16: R 0.00 | R16: R 0.00 | S16: R0.00 | Y16: 0% | AA16: R0.00
A17: 300 hr/month | G17: 96 | Q17: R 0.00 | R17: R 0.00 | S17: R0.00 | Y17: 0% | AA17: R0.00
A18: ='MHE Quantities'!C63 -> Forklift >3.5 Ton <= 7 Ton
A19: 60 hr/month | G19: 96 | Q19: =K19+L19+M19+N19+O19+P19 -> R 0.00 | R19: =Q19*15% -> R 0.00 | S19: =Q19+R19 -> R0.00 | Y19: =IFERROR(Z19/Q19,0) -> 0% | AA19: =S19+Z19 -> R0.00 | AC19: =S19+Z19+AB19 -> R 0.00
A20: 80 hr/month | G20: 96 | Q20: =K20+L20+M20+N20+O20+P20 -> R 0.00 | R20: =Q20*15% -> R 0.00 | S20: =Q20+R20 -> R0.00 | Y20: 0% | AA20: =S20+Z20 -> R0.00
A21: 100 hr/month | G21: 96 | Q21: R 0.00 | R21: R 0.00 | S21: R0.00 | Y21: 0% | AA21: =S21+Z21 -> R0.00
A22: 120 hr/month | G22: 96 | Q22: R 0.00 | R22: R 0.00 | S22: R0.00 | Y22: 0% | AA22: R0.00
A23: 200 hr/month | G23: 96 | Q23: R 0.00 | R23: R 0.00 | S23: R0.00 | Y23: 0% | AA23: R0.00
A24: 250 hr/month | G24: 96 | Q24: R 0.00 | R24: R 0.00 | S24: R0.00 | Y24: 0% | AA24: R0.00
A25: 300 hr/month | G25: 96 | Q25: R 0.00 | R25: R 0.00 | S25: R0.00 | Y25: 0% | AA25: R0.00
A26: ='MHE Quantities'!C64 -> Forklift >7 Ton <= 10 Ton
A27: 60 hr/month | G27: 96 | Q27: =K27+L27+M27+N27+O27+P27 -> R 0.00 | R27: =Q27*15% -> R 0.00 | S27: =Q27+R27 -> R0.00 | Y27: =IFERROR(Z27/Q27,0) -> 0% | AA27: =S27+Z27 -> R0.00 | AC27: =S27+Z27+AB27 -> R 0.00
A28: 80 hr/month | G28: 96 | Q28: =K28+L28+M28+N28+O28+P28 -> R 0.00 | R28: =Q28*15% -> R 0.00 | S28: =Q28+R28 -> R0.00 | Y28: 0% | AA28: =S28+Z28 -> R0.00
A29: 100 hr/month | G29: 96 | Q29: R 0.00 | R29: R 0.00 | S29: R0.00 | Y29: 0% | AA29: =S29+Z29 -> R0.00
A30: 120 hr/month | G30: 96 | Q30: R 0.00 | R30: R 0.00 | S30: R0.00 | Y30: 0% | AA30: R0.00
A31: 200 hr/month | G31: 96 | Q31: R 0.00 | R31: R 0.00 | S31: R0.00 | Y31: 0% | AA31: R0.00
A32: 250 hr/month | G32: 96 | Q32: R 0.00 | R32: R 0.00 | S32: R0.00 | Y32: 0% | AA32: R0.00
A33: 300 hr/month | G33: 96 | Q33: R 0.00 | R33: R 0.00 | S33: R0.00 | Y33: 0% | AA33: R0.00
A34: ='MHE Quantities'!C65 -> Forklift >10 Ton <= 15 Ton
A35: 60 hr/month | G35: 96 | Q35: =K35+L35+M35+N35+O35+P35 -> R 0.00 | R35: =Q35*15% -> R 0.00 | S35: =Q35+R35 -> R0.00 | Y35: =IFERROR(Z35/Q35,0) -> 0% | AA35: =S35+Z35 -> R0.00 | AC35: =S35+Z35+AB35 -> R 0.00
A36: 80 hr/month | G36: 96 | Q36: =K36+L36+M36+N36+O36+P36 -> R 0.00 | R36: =Q36*15% -> R 0.00 | S36: =Q36+R36 -> R0.00 | Y36: 0% | AA36: =S36+Z36 -> R0.00
A37: 100 hr/month | G37: 96 | Q37: R 0.00 | R37: R 0.00 | S37: R0.00 | Y37: 0% | AA37: =S37+Z37 -> R0.00
A38: 120 hr/month | G38: 96 | Q38: R 0.00 | R38: R 0.00 | S38: R0.00 | Y38: 0% | AA38: R0.00
A39: 200 hr/month | G39: 96 | Q39: R 0.00 | R39: R 0.00 | S39: R0.00 | Y39: 0% | AA39: R0.00
A40: 250 hr/month | G40: 96 | Q40: R 0.00 | R40: R 0.00 | S40: R0.00 | Y40: 0% | AA40: R0.00
A41: 300 hr/month | G41: 96 | Q41: R 0.00 | R41: R 0.00 | S41: R0.00 | Y41: 0% | AA41: R0.00
A42: ='MHE Quantities'!C66 -> Forklift >15 Ton <= 25 Ton
A43: 60 hr/month | G43: 96 | Q43: =K43+L43+M43+N43+O43+P43 -> R 0.00 | R43: =Q43*15% -> R 0.00 | S43: =Q43+R43 -> R0.00 | Y43: =IFERROR(Z43/Q43,0) -> 0% | AA43: =S43+Z43 -> R0.00 | AC43: =S43+Z43+AB43 -> R 0.00
A44: 80 hr/month | G44: 96 | Q44: =K44+L44+M44+N44+O44+P44 -> R 0.00 | R44: =Q44*15% -> R 0.00 | S44: =Q44+R44 -> R0.00 | Y44: 0% | AA44: =S44+Z44 -> R0.00
A45: 100 hr/month | G45: 96 | Q45: R 0.00 | R45: R 0.00 | S45: R0.00 | Y45: 0% | AA45: =S45+Z45 -> R0.00
A46: 120 hr/month | G46: 96 | Q46: R 0.00 | R46: R 0.00 | S46: R0.00 | Y46: 0% | AA46: R0.00
A47: 200 hr/month | G47: 96 | Q47: R 0.00 | R47: R 0.00 | S47: R0.00 | Y47: 0% | AA47: R0.00
A48: 250 hr/month | G48: 96 | Q48: R 0.00 | R48: R 0.00 | S48: R0.00 | Y48: 0% | AA48: R0.00
A49: 300 hr/month | G49: 96 | Q49: R 0.00 | R49: R 0.00 | S49: R0.00 | Y49: 0% | AA49: R0.00
A50: ='MHE Quantities'!C67 -> Forklift >25 Ton <= 45 Ton
A51: 60 hr/month | G51: 96 | Q51: =K51+L51+M51+N51+O51+P51 -> R 0.00 | R51: =Q51*15% -> R 0.00 | S51: =Q51+R51 -> R0.00 | Y51: =IFERROR(Z51/Q51,0) -> 0% | AA51: =S51+Z51 -> R0.00 | AC51: =S51+Z51+AB51 -> R 0.00
A52: 80 hr/month | G52: 96 | Q52: =K52+L52+M52+N52+O52+P52 -> R 0.00 | R52: =Q52*15% -> R 0.00 | S52: =Q52+R52 -> R0.00 | Y52: 0% | AA52: =S52+Z52 -> R0.00
A53: 100 hr/month | G53: 96 | Q53: R 0.00 | R53: R 0.00 | S53: R0.00 | Y53: 0% | AA53: =S53+Z53 -> R0.00
A54: 120 hr/month | G54: 96 | Q54: R 0.00 | R54: R 0.00 | S54: R0.00 | Y54: 0% | AA54: R0.00
A55: 200 hr/month | G55: 96 | Q55: R 0.00 | R55: R 0.00 | S55: R0.00 | Y55: 0% | AA55: R0.00
A56: 250 hr/month | G56: 96 | Q56: R 0.00 | R56: R 0.00 | S56: R0.00 | Y56: 0% | AA56: R0.00
A57: 300 hr/month | G57: 96 | Q57: R 0.00 | R57: R 0.00 | S57: R0.00 | Y57: 0% | AA57: R0.00
A58: ='MHE Quantities'!C68 -> Front End Loader
A59: 60 hr/month | G59: 96 | Q59: =K59+L59+M59+N59+O59+P59 -> R 0.00 | R59: =Q59*15% -> R 0.00 | S59: =Q59+R59 -> R0.00 | Y59: =IFERROR(Z59/Q59,0) -> 0% | AA59: =S59+Z59 -> R0.00 | AC59: =S59+Z59+AB59 -> R 0.00
A60: 80 hr/month | G60: 96 | Q60: =K60+L60+M60+N60+O60+P60 -> R 0.00 | R60: =Q60*15% -> R 0.00 | S60: =Q60+R60 -> R0.00 | Y60: 0% | AA60: =S60+Z60 -> R0.00
A61: 100 hr/month | G61: 96 | Q61: R 0.00 | R61: R 0.00 | S61: R0.00 | Y61: 0% | AA61: =S61+Z61 -> R0.00
A62: 120 hr/month | G62: 96 | Q62: R 0.00 | R62: R 0.00 | S62: R0.00 | Y62: 0% | AA62: R0.00
A63: 200 hr/month | G63: 96 | Q63: R 0.00 | R63: R 0.00 | S63: R0.00 | Y63: 0% | AA63: R0.00
A64: 250 hr/month | G64: 96 | Q64: R 0.00 | R64: R 0.00 | S64: R0.00 | Y64: 0% | AA64: R0.00
A65: 300 hr/month | G65: 96 | Q65: R 0.00 | R65: R 0.00 | S65: R0.00 | Y65: 0% | AA65: R0.00
A66: ='MHE Quantities'!C69 -> Terminal Tractor/Haulers
A67: 60 hr/month | G67: 96 | Q67: =K67+L67+M67+N67+O67+P67 -> R 0.00 | R67: =Q67*15% -> R 0.00 | S67: =Q67+R67 -> R0.00 | Y67: =IFERROR(Z67/Q67,0) -> 0% | AA67: =S67+Z67 -> R0.00 | AC67: =S67+Z67+AB67 -> R 0.00
A68: 80 hr/month | G68: 96 | Q68: =K68+L68+M68+N68+O68+P68 -> R 0.00 | R68: =Q68*15% -> R 0.00 | S68: =Q68+R68 -> R0.00 | Y68: 0% | AA68: =S68+Z68 -> R0.00
A69: 100 hr/month | G69: 96 | Q69: R 0.00 | R69: R 0.00 | S69: R0.00 | Y69: 0% | AA69: =S69+Z69 -> R0.00
A70: 120 hr/month | G70: 96 | Q70: R 0.00 | R70: R 0.00 | S70: R0.00 | Y70: 0% | AA70: R0.00
A71: 200 hr/month | G71: 96 | Q71: R 0.00 | R71: R 0.00 | S71: R0.00 | Y71: 0% | AA71: R0.00
A72: 250 hr/month | G72: 96 | Q72: R 0.00 | R72: R 0.00 | S72: R0.00 | Y72: 0% | AA72: R0.00
A73: 300 hr/month | G73: 96 | Q73: R 0.00 | R73: R 0.00 | S73: R0.00 | Y73: 0% | AA73: R0.00
A74: ='MHE Quantities'!C70 -> Reach Stacker
A75: 60 hr/month | G75: 96 | Q75: =K75+L75+M75+N75+O75+P75 -> R 0.00 | R75: =Q75*15% -> R 0.00 | S75: =Q75+R75 -> R0.00 | Y75: =IFERROR(Z75/Q75,0) -> 0% | AA75: =S75+Z75 -> R0.00 | AC75: =S75+Z75+AB75 -> R 0.00
A76: 80 hr/month | G76: 96 | Q76: =K76+L76+M76+N76+O76+P76 -> R 0.00 | R76: =Q76*15% -> R 0.00 | S76: =Q76+R76 -> R0.00 | Y76: 0% | AA76: =S76+Z76 -> R0.00
A77: 100 hr/month | G77: 96 | Q77: R 0.00 | R77: R 0.00 | S77: R0.00 | Y77: 0% | AA77: =S77+Z77 -> R0.00
A78: 120 hr/month | G78: 96 | Q78: R 0.00 | R78: R 0.00 | S78: R0.00 | Y78: 0% | AA78: R0.00
A79: 200 hr/month | G79: 96 | Q79: R 0.00 | R79: R 0.00 | S79: R0.00 | Y79: 0% | AA79: R0.00
A80: 250 hr/month | G80: 96 | Q80: R 0.00 | R80: R 0.00 | S80: R0.00 | Y80: 0% | AA80: R0.00
A81: 300 hr/month | G81: 96 | Q81: R 0.00 | R81: R 0.00 | S81: R0.00 | Y81: 0% | AA81: R0.00
A82: ='MHE Quantities'!C72 -> Trailer - Industrial Type (One ton)
A83: Fixed Rate | G83: 96 | Q83: =K83+L83+M83+N83+O83+P83 -> R 0.00 | R83: =Q83*15% -> R 0.00 | S83: =Q83+R83 -> R0.00 | Y83: =IFERROR(Z83/Q83,0) -> 0% | AA83: =S83+Z83 -> R0.00 | AC83: =S83+Z83+AB83 -> R 0.00
A84: ='MHE Quantities'!C73 -> Trailer - Industrial Type (Two ton)
A85: Fixed Rate | G85: 96 | Q85: =K85+L85+M85+N85+O85+P85 -> R 0.00 | R85: =Q85*15% -> R 0.00 | S85: =Q85+R85 -> R0.00 | Y85: =IFERROR(Z85/Q85,0) -> 0% | AA85: =S85+Z85 -> R0.00 | AC85: =S85+Z85+AB85 -> R 0.00
A86: ='MHE Quantities'!C74 -> Trailer Light (Luggage trailers)
A87: Fixed Rate | G87: 96 | Q87: =K87+L87+M87+N87+O87+P87 -> R 0.00 | R87: =Q87*15% -> R 0.00 | S87: =Q87+R87 -> R0.00 | Y87: =IFERROR(Z87/Q87,0) -> 0% | AA87: =S87+Z87 -> R0.00 | AC87: =S87+Z87+AB87 -> R 0.00
A88: ='MHE Quantities'!C75 -> Trailer Medium 1 and 2 axels (+10 Ton, flat bed)
A89: Fixed Rate | G89: 96 | Q89: =K89+L89+M89+N89+O89+P89 -> R 0.00 | R89: =Q89*15% -> R 0.00 | S89: =Q89+R89 -> R0.00 | Y89: =IFERROR(Z89/Q89,0) -> 0% | AA89: =S89+Z89 -> R0.00 | AC89: =S89+Z89+AB89 -> R 0.00
A90: ='MHE Quantities'!C76 -> Trailer Heavy duty 3 and 4 axels (+10 Ton, flat bed)
A91: Fixed Rate | G91: 96 | Q91: =K91+L91+M91+N91+O91+P91 -> R 0.00 | R91: =Q91*15% -> R 0.00 | S91: =Q91+R91 -> R0.00 | Y91: =IFERROR(Z91/Q91,0) -> 0% | AA91: =S91+Z91 -> R0.00 | AC91: =S91+Z91+AB91 -> R 0.00

Sheet Monthly Cost
B2: Monthly Cost (Using Estimated Quantities) | E2: Click links for
E3: Pricing And Delvery Schedule
B5: =Instructions!B6 -> ANNEXURE D: PRICING SCHEDULE
B6: =Instructions!B7 -> RFP: TCC/2023/08/0001/40193/RFP
B8: Material Handling Equipment | C8: Fleet Management
B9: Category | C9: Monthly Total FML rental | D9: Short Term rental cost (monthly rate) | E9: Monthly Managed Maintenance Fee (for any Transnet owned Equipment)
B10: ='MHE Quantities'!C62 -> Forklift <= 3.5 Ton
B11: 60 hr/month | C11: =(('Pricing and Delivery Schedule'!Q11*'MHE Quantities'!$D$12)+('Pricing and Delivery Schedule'!Q12*'MHE Quantities'!$E$12)+('Pricing and Delivery Schedule'!Q13*'MHE Quantities'!$F$12)+('Pricing and Delivery Schedule'!Q14*'MHE Quantities'!$G$12)+('Pricing and Delivery Schedule'!Q15*'MHE Quantities'!$H$12)+('Pricing and Delivery Schedule'!Q16*'MHE Quantities'!$I$12)+('Pricing and Delivery Schedule'!Q17*'MHE Quantities'!$J$12))*'MHE Quantities'!$B$12 -> R0.00 | D11: =(('Pricing and Delivery Schedule'!Z11*'MHE Quantities'!$D$12)+('Pricing and Delivery Schedule'!Z12*'MHE Quantities'!$E$12)+('Pricing and Delivery Schedule'!Z13*'MHE Quantities'!$F$12)+('Pricing and Delivery Schedule'!Z14*'MHE Quantities'!$G$12)+('Pricing and Delivery Schedule'!Z15*'MHE Quantities'!$H$12)+('Pricing and Delivery Schedule'!Z16*'MHE Quantities'!$I$12)+('Pricing and Delivery Schedule'!Z17*'MHE Quantities'!$J$12))*'MHE Quantities'!$K$12 -> R0.00 | E11: =('Pricing and Delivery Schedule'!AB11*'MHE Quantities'!$L$12) -> R0.00
B12: 80 hr/month
B13: 100 hr/month
B14: 120 hr/month
B15: 200 hr/month
B16: 250 hr/month
B17: 300 hr/month
B18: ='MHE Quantities'!C63 -> Forklift >3.5 Ton <= 7 Ton
B19: 60 hr/month | C19: =(('Pricing and Delivery Schedule'!Q19*'MHE Quantities'!$D$13)+('Pricing and Delivery Schedule'!Q20*'MHE Quantities'!$E$13)+('Pricing and Delivery Schedule'!Q21*'MHE Quantities'!$F$13)+('Pricing and Delivery Schedule'!Q22*'MHE Quantities'!$G$13)+('Pricing and Delivery Schedule'!Q23*'MHE Quantities'!$H$13)+('Pricing and Delivery Schedule'!Q24*'MHE Quantities'!$I$13)+('Pricing and Delivery Schedule'!Q25*'MHE Quantities'!$J$13))*'MHE Quantities'!$B$13 -> R0.00 | D19: =(('Pricing and Delivery Schedule'!Z19*'MHE Quantities'!$D$13)+('Pricing and Delivery Schedule'!Z20*'MHE Quantities'!$E$13)+('Pricing and Delivery Schedule'!Z21*'MHE Quantities'!$F$13)+('Pricing and Delivery Schedule'!Z22*'MHE Quantities'!$G$13)+('Pricing and Delivery Schedule'!Z23*'MHE Quantities'!$H$13)+('Pricing and Delivery Schedule'!Z24*'MHE Quantities'!$I$13)+('Pricing and Delivery Schedule'!Z25*'MHE Quantities'!$J$13))*'MHE Quantities'!$K$13 -> R0.00 | E19: =('Pricing and Delivery Schedule'!AB19*'MHE Quantities'!$L$13) -> R0.00
B20: 80 hr/month
B21: 100 hr/month
B22: 120 hr/month
B23: 200 hr/month
B24: 250 hr/month
B25: 300 hr/month
B26: ='MHE Quantities'!C64 -> Forklift >7 Ton <= 10 Ton
B27: 60 hr/month | C27: =(('Pricing and Delivery Schedule'!Q27*'MHE Quantities'!$D$14)+('Pricing and Delivery Schedule'!Q28*'MHE Quantities'!$E$14)+('Pricing and Delivery Schedule'!Q29*'MHE Quantities'!$F$14)+('Pricing and Delivery Schedule'!Q30*'MHE Quantities'!$G$14)+('Pricing and Delivery Schedule'!Q31*'MHE Quantities'!$H$14)+('Pricing and Delivery Schedule'!Q32*'MHE Quantities'!$I$14)+('Pricing and Delivery Schedule'!Q33*'MHE Quantities'!$J$14))*'MHE Quantities'!$B$14 -> R0.00 | D27: =(('Pricing and Delivery Schedule'!Z27*'MHE Quantities'!$D$14)+('Pricing and Delivery Schedule'!Z28*'MHE Quantities'!$E$14)+('Pricing and Delivery Schedule'!Z29*'MHE Quantities'!$F$14)+('Pricing and Delivery Schedule'!Z30*'MHE Quantities'!$G$14)+('Pricing and Delivery Schedule'!Z31*'MHE Quantities'!$H$14)+('Pricing and Delivery Schedule'!Z32*'MHE Quantities'!$I$14)+('Pricing and Delivery Schedule'!Z33*'MHE Quantities'!$J$14))*'MHE Quantities'!$K$14 -> R0.00 | E27: =('Pricing and Delivery Schedule'!AB27*'MHE Quantities'!$L$14) -> R0.00
B28: 80 hr/month
B29: 100 hr/month
B30: 120 hr/month
B31: 200 hr/month
B32: 250 hr/month
B33: 300 hr/month
B34: ='MHE Quantities'!C65 -> Forklift >10 Ton <= 15 Ton
B35: 60 hr/month | C35: =(('Pricing and Delivery Schedule'!Q35*'MHE Quantities'!$D$15)+('Pricing and Delivery Schedule'!Q36*'MHE Quantities'!$E$15)+('Pricing and Delivery Schedule'!Q37*'MHE Quantities'!$F$15)+('Pricing and Delivery Schedule'!Q38*'MHE Quantities'!$G$15)+('Pricing and Delivery Schedule'!Q39*'MHE Quantities'!$H$15)+('Pricing and Delivery Schedule'!Q40*'MHE Quantities'!$I$15)+('Pricing and Delivery Schedule'!Q41*'MHE Quantities'!$J$15))*'MHE Quantities'!$B$15 -> R0.00 | D35: =(('Pricing and Delivery Schedule'!Z35*'MHE Quantities'!$D$15)+('Pricing and Delivery Schedule'!Z36*'MHE Quantities'!$E$15)+('Pricing and Delivery Schedule'!Z37*'MHE Quantities'!$F$15)+('Pricing and Delivery Schedule'!Z38*'MHE Quantities'!$G$15)+('Pricing and Delivery Schedule'!Z39*'MHE Quantities'!$H$15)+('Pricing and Delivery Schedule'!Z40*'MHE Quantities'!$I$15)+('Pricing and Delivery Schedule'!Z41*'MHE Quantities'!$J$15))*'MHE Quantities'!$K$15 -> R0.00 | E35: =('Pricing and Delivery Schedule'!AB35*'MHE Quantities'!$L$15) -> R0.00
B36: 80 hr/month
B37: 100 hr/month
B38: 120 hr/month
B39: 200 hr/month
B40: 250 hr/month
B41: 300 hr/month
B42: ='MHE Quantities'!C66 -> Forklift >15 Ton <= 25 Ton
B43: 60 hr/month | C43: =(('Pricing and Delivery Schedule'!Q43*'MHE Quantities'!$D$16)+('Pricing and Delivery Schedule'!Q44*'MHE Quantities'!$E$16)+('Pricing and Delivery Schedule'!Q45*'MHE Quantities'!$F$16)+('Pricing and Delivery Schedule'!Q46*'MHE Quantities'!$G$16)+('Pricing and Delivery Schedule'!Q47*'MHE Quantities'!$H$16)+('Pricing and Delivery Schedule'!Q48*'MHE Quantities'!$I$16)+('Pricing and Delivery Schedule'!Q49*'MHE Quantities'!$J$16))*'MHE Quantities'!$B$16 -> R0.00 | D43: =(('Pricing and Delivery Schedule'!Z43*'MHE Quantities'!$D$16)+('Pricing and Delivery Schedule'!Z44*'MHE Quantities'!$E$16)+('Pricing and Delivery Schedule'!Z45*'MHE Quantities'!$F$16)+('Pricing and Delivery Schedule'!Z46*'MHE Quantities'!$G$16)+('Pricing and Delivery Schedule'!Z47*'MHE Quantities'!$H$16)+('Pricing and Delivery Schedule'!Z48*'MHE Quantities'!$I$16)+('Pricing and Delivery Schedule'!Z49*'MHE Quantities'!$J$16))*'MHE Quantities'!$K$16 -> R0.00 | E43: =('Pricing and Delivery Schedule'!AB43*'MHE Quantities'!$L$16) -> R0.00
B44: 80 hr/month
B45: 100 hr/month
B46: 120 hr/month
B47: 200 hr/month
B48: 250 hr/month
B49: 300 hr/month
B50: ='MHE Quantities'!C67 -> Forklift >25 Ton <= 45 Ton
B51: 60 hr/month | C51: =(('Pricing and Delivery Schedule'!Q51*'MHE Quantities'!$D$17)+('Pricing and Delivery Schedule'!Q52*'MHE Quantities'!$E$17)+('Pricing and Delivery Schedule'!Q53*'MHE Quantities'!$F$17)+('Pricing and Delivery Schedule'!Q54*'MHE Quantities'!$G$17)+('Pricing and Delivery Schedule'!Q55*'MHE Quantities'!$H$17)+('Pricing and Delivery Schedule'!Q56*'MHE Quantities'!$I$17)+('Pricing and Delivery Schedule'!Q57*'MHE Quantities'!$J$17))*'MHE Quantities'!$B$17 -> R0.00 | D51: =(('Pricing and Delivery Schedule'!Z51*'MHE Quantities'!$D$17)+('Pricing and Delivery Schedule'!Z52*'MHE Quantities'!$E$17)+('Pricing and Delivery Schedule'!Z53*'MHE Quantities'!$F$17)+('Pricing and Delivery Schedule'!Z54*'MHE Quantities'!$G$17)+('Pricing and Delivery Schedule'!Z55*'MHE Quantities'!$H$17)+('Pricing and Delivery Schedule'!Z56*'MHE Quantities'!$I$17)+('Pricing and Delivery Schedule'!Z57*'MHE Quantities'!$J$17))*'MHE Quantities'!$K$17 -> R0.00 | E51: =('Pricing and Delivery Schedule'!AB51*'MHE Quantities'!$L$17) -> R0.00
B52: 80 hr/month
B53: 100 hr/month
B54: 120 hr/month
B55: 200 hr/month
B56: 250 hr/month
B57: 300 hr/month
B58: ='MHE Quantities'!C68 -> Front End Loader
B59: 60 hr/month | C59: =(('Pricing and Delivery Schedule'!Q59*'MHE Quantities'!$D$18)+('Pricing and Delivery Schedule'!Q60*'MHE Quantities'!$E$18)+('Pricing and Delivery Schedule'!Q61*'MHE Quantities'!$F$18)+('Pricing and Delivery Schedule'!Q62*'MHE Quantities'!$G$18)+('Pricing and Delivery Schedule'!Q63*'MHE Quantities'!$H$18)+('Pricing and Delivery Schedule'!Q64*'MHE Quantities'!$I$18)+('Pricing and Delivery Schedule'!Q65*'MHE Quantities'!$J$18))*'MHE Quantities'!$B$18 -> R0.00 | D59: =(('Pricing and Delivery Schedule'!Z59*'MHE Quantities'!$D$18)+('Pricing and Delivery Schedule'!Z60*'MHE Quantities'!$E$18)+('Pricing and Delivery Schedule'!Z61*'MHE Quantities'!$F$18)+('Pricing and Delivery Schedule'!Z62*'MHE Quantities'!$G$18)+('Pricing and Delivery Schedule'!Z63*'MHE Quantities'!$H$18)+('Pricing and Delivery Schedule'!Z64*'MHE Quantities'!$I$18)+('Pricing and Delivery Schedule'!Z65*'MHE Quantities'!$J$18))*'MHE Quantities'!$K$18 -> R0.00 | E59: =('Pricing and Delivery Schedule'!AB59*'MHE Quantities'!$L$18) -> R0.00
B60: 80 hr/month
B61: 100 hr/month
B62: 120 hr/month
B63: 200 hr/month
B64: 250 hr/month
B65: 300 hr/month
B66: ='MHE Quantities'!C69 -> Terminal Tractor/Haulers
B67: 60 hr/month | C67: =(('Pricing and Delivery Schedule'!Q67*'MHE Quantities'!$D$19)+('Pricing and Delivery Schedule'!Q68*'MHE Quantities'!$E$19)+('Pricing and Delivery Schedule'!Q69*'MHE Quantities'!$F$19)+('Pricing and Delivery Schedule'!Q70*'MHE Quantities'!$G$19)+('Pricing and Delivery Schedule'!Q71*'MHE Quantities'!$H$19)+('Pricing and Delivery Schedule'!Q72*'MHE Quantities'!$I$19)+('Pricing and Delivery Schedule'!Q73*'MHE Quantities'!$J$19))*'MHE Quantities'!$B$19 -> R0.00 | D67: =(('Pricing and Delivery Schedule'!Z67*'MHE Quantities'!$D$19)+('Pricing and Delivery Schedule'!Z68*'MHE Quantities'!$E$19)+('Pricing and Delivery Schedule'!Z69*'MHE Quantities'!$F$19)+('Pricing and Delivery Schedule'!Z70*'MHE Quantities'!$G$19)+('Pricing and Delivery Schedule'!Z71*'MHE Quantities'!$H$19)+('Pricing and Delivery Schedule'!Z72*'MHE Quantities'!$I$19)+('Pricing and Delivery Schedule'!Z73*'MHE Quantities'!$J$19))*'MHE Quantities'!$K$19 -> R0.00 | E67: =('Pricing and Delivery Schedule'!AB67*'MHE Quantities'!$L$19) -> R0.00
B68: 80 hr/month
B69: 100 hr/month
B70: 120 hr/month
B71: 200 hr/month
B72: 250 hr/month
B73: 300 hr/month
B74: ='MHE Quantities'!C70 -> Reach Stacker
B75: 60 hr/month | C75: =(('Pricing and Delivery Schedule'!Q75*'MHE Quantities'!$D$20)+('Pricing and Delivery Schedule'!Q76*'MHE Quantities'!$E$20)+('Pricing and Delivery Schedule'!Q77*'MHE Quantities'!$F$20)+('Pricing and Delivery Schedule'!Q78*'MHE Quantities'!$G$20)+('Pricing and Delivery Schedule'!Q79*'MHE Quantities'!$H$20)+('Pricing and Delivery Schedule'!Q80*'MHE Quantities'!$I$20)+('Pricing and Delivery Schedule'!Q81*'MHE Quantities'!$J$20))*'MHE Quantities'!$B$20 -> R0.00 | D75: =(('Pricing and Delivery Schedule'!Z75*'MHE Quantities'!$D$20)+('Pricing and Delivery Schedule'!Z76*'MHE Quantities'!$E$20)+('Pricing and Delivery Schedule'!Z77*'MHE Quantities'!$F$20)+('Pricing and Delivery Schedule'!Z78*'MHE Quantities'!$G$20)+('Pricing and Delivery Schedule'!Z79*'MHE Quantities'!$H$20)+('Pricing and Delivery Schedule'!Z80*'MHE Quantities'!$I$20)+('Pricing and Delivery Schedule'!Z81*'MHE Quantities'!$J$20))*'MHE Quantities'!$K$20 -> R0.00 | E75: =('Pricing and Delivery Schedule'!AB75*'MHE Quantities'!$L$20) -> R0.00
B76: 80 hr/month
B77: 100 hr/month
B78: 120 hr/month
B79: 200 hr/month
B80: 250 hr/month
B81: 300 hr/month
B83: Trailer - Industrial Type (One ton)
B84: Fixed rate | C84: =('Pricing and Delivery Schedule'!Q83*'MHE Quantities'!$B$23) -> R0.00 | D84: =('Pricing and Delivery Schedule'!Z83*'MHE Quantities'!$K$23) -> R0.00 | E84: =('Pricing and Delivery Schedule'!AB83*'MHE Quantities'!$L$23) -> R0.00
B85: Trailer - Industrial Type (Two ton)
B86: Fixed rate | C86: =('Pricing and Delivery Schedule'!Q85*'MHE Quantities'!$B$24) -> R0.00 | D86: =('Pricing and Delivery Schedule'!Z85*'MHE Quantities'!$K$24) -> R0.00 | E86: =('Pricing and Delivery Schedule'!AB85*'MHE Quantities'!$L$24) -> R0.00
B87: Trailer Light (Luggage trailers)
B88: Fixed rate | C88: =('Pricing and Delivery Schedule'!Q87*'MHE Quantities'!$B$25) -> R0.00 | D88: =('Pricing and Delivery Schedule'!Z87*'MHE Quantities'!$K$25) -> R0.00 | E88: =('Pricing and Delivery Schedule'!AB87*'MHE Quantities'!$L$25) -> R0.00
B89: Trailer Medium 1 and 2 arels (+10 Ton, flat bed)
B90: Fixed rate | C90: =('Pricing and Delivery Schedule'!Q89*'MHE Quantities'!$B$26) -> R0.00 | D90: =('Pricing and Delivery Schedule'!Z89*'MHE Quantities'!$K$26) -> R0.00 | E90: =('Pricing and Delivery Schedule'!AB89*'MHE Quantities'!$L$26) -> R0.00
B91: Trialer Heavy duty 3 and 4 arels (+10 Ton, flat bed)
B92: Fixed rate | C92: =('Pricing and Delivery Schedule'!Q91*'MHE Quantities'!$B$27) -> R0.00 | D92: =('Pricing and Delivery Schedule'!Z91*'MHE Quantities'!$K$27) -> R0.00 | E92: =('Pricing and Delivery Schedule'!AB91*'MHE Quantities'!$L$27) -> R0.00
B94: 1 Month Total | C94: =SUM(C11,C19,C27,C35,C43,C51,C59,C67,C75,C84,C86,C88,C90,C92) -> R0.00 | D94: =SUM(D11,D19,D27,D35,D43,D51,D59,D67,D75,D84,D86,D88,D90,D92) -> R0.00 | E94: =SUM(E11,E19,E27,E35,E43,E51,E59,E67,E75,E84,E86,E88,E90,E92) -> R0.00

Sheet MHE Quantities
C3: =Instructions!B5 -> FOR THE PROVISION OF SPECIALISED MATERIAL HANDLING EQUIPMENT (MHE) FLEET MANAGEMENT SERVICES FOR A PERIOD OF EIGHT (8) YEARS.
C5: =Instructions!B6 -> ANNEXURE D: PRICING SCHEDULE
C7: =Instructions!B7 -> RFP: TCC/2023/08/0001/40193/RFP
B9: Material Handling Equipment (MHE) | D9: Quantities Percentage [%] Split
B10: FML | C10: Vehicle category | D10: 60 hr/month | E10: 80 hr/month | F10: 100 hr/month | G10: 120 hr/month | H10: 200 hr/month | I10: 250 hr/month | J10: 300 hr/month | K10: STR | L10: MM | M10: Check
B12: =B62 -> 119 | C12: =C62 -> Forklift <= 3.5 Ton | D12: =IFERROR((D62/$B$12),"0"%) -> 60% | E12: =IFERROR((E62/$B$12),"0"%) -> 18% | F12: =IFERROR((F62/$B$12),"0"%) -> 19% | G12: 2% | H12: 2% | I12: 0% | J12: 0% | K12: =K62 -> 241 | L12: 241 | M12: =SUM(D12:J12) -> 100%
B13: 59 | C13: =C63 -> Forklift >3.5 Ton <= 7 Ton | D13: =IFERROR((D63/$B$13),"0"%) -> 37% | E13: =IFERROR((E63/$B$13),"0"%) -> 27% | F13: 24% | G13: 7% | H13: 0% | I13: 0% | J13: 5% | K13: 59 | L13: 147 | M13: =SUM(D13:J13) -> 100%
B14: 1 | C14: Forklift >7 Ton <= 10 Ton | D14: =IFERROR((D64/$B$14),"0"%) -> 14% | E14: =IFERROR((E64/$B$14),"0"%) -> 14% | F14: 14% | G14: 14% | H14: 14% | I14: 14% | J14: 14% | K14: 31 | L14: 31 | M14: 100%
B15: 3 | C15: Forklift >10 Ton <= 15 Ton | D15: =IFERROR((D65/$B$15),"0"%) -> 67% | E15: =IFERROR((E65/$B$15),"0"%) -> 33% | F15: 0% | G15: 0% | H15: 0% | I15: 0% | J15: 0% | K15: 8 | L15: 8 | M15: 100%
B16: 1 | C16: Forklift >15 Ton <= 25 Ton | D16: =IFERROR((D66/$B$16),"0"%) -> 14% | E16: =IFERROR((E66/$B$16),"0"%) -> 14% | F16: 14% | G16: 14% | H16: 14% | I16: 14% | J16: 14% | K16: 7 | L16: 7 | M16: 100%
B17: 1 | C17: Forklift >25 Ton <= 45 Ton | D17: =IFERROR((D67/$B$17),"0"%) -> 14% | E17: =IFERROR((E67/$B$17),"0"%) -> 14% | F17: 14% | G17: 14% | H17: 14% | I17: 14% | J17: 14% | K17: 5 | L17: 5 | M17: 100%
B18: =B68 -> 1 | C18: Front End Loader | D18: =IFERROR((D68/$B$18),"0"%) -> 0% | E18: =IFERROR((E68/$B$18),"0"%) -> 0% | F18: 0% | G18: 0% | H18: 100% | I18: 0% | J18: 0% | K18: =K68 -> 20 | L18: =L68 -> 20 | M18: =SUM(D18:J18) -> 100%
B19: 37 | C19: Terminal Tractor/Haulers | D19: =IFERROR((D69/$B$19),"0"%) -> 11% | E19: =IFERROR((E69/$B$19),"0"%) -> 5% | F19: 5% | G19: 0% | H19: 78% | I19: 0% | J19: 0% | K19: =K69 -> 33 | L19: 33 | M19: 100%
B20: =B70 -> 49 | C20: =C70 -> Reach Stacker | D20: =IFERROR((D70/$B$20),"0%") -> 8% | E20: =IFERROR((E70/$B$20),"0%") -> 0% | F20: 29% | G20: 8% | H20: 45% | I20: 8% | J20: 2% | K20: =K70 -> 28 | L20: =L70 -> 28 | M20: 100%
B22: Trailers | D22: Montly rental | K22: STR | L22: MM
B23: =B72 -> 1 | C23: Trailer - Industrial Type (One ton) | D23: =IFERROR((D72/B72),"0"%) -> 100% | K23: =K72 -> 0 | L23: =L72 -> 17
B24: 1 | C24: Trailer - Industrial Type (Two ton) | D24: =IFERROR((D73/B24),"0%") -> 100% | K24: =K73 -> 0 | L24: 0
B25: 1 | C25: Trailer Light (Luggage trailers) | D25: =IFERROR((D74/B25),"0%") -> 100% | K25: 0 | L25: 193
B26: 33 | C26: Trailer Medium 1 and 2 axels (+10 Ton, flat bed) | D26: =IFERROR((D75/B26),"0%") -> 100% | K26: 0 | L26: 1
B27: 1 | C27: Trailer Heavy duty 3 and 4 axels (+10 Ton, flat bed) | D27: =IFERROR((D76/B27),"0%") -> 100% | K27: =K76 -> 0 | L27: =L76 -> 9
C30: HCV
B31: % weighting per vehicle type in the category | C31: Vehicle category | D31: 3000 | E31: 5000
C33: Trucks
B34: 167 | C34: Light Truck <= 4T
B35: 105 | C35: Medium Truck > 4 or <= 7T
B36: 679 | C36: Heavy Truck > 7 <= 10T
B37: 78 | C37: Heavy Truck > 10 <= 14T
B38: 31 | C38: Truck tractors > 14T
C40: Buses
B41: 22 | C41: Bus (> 16 <= 23 Seater)
B42: 8 | C42: Bus (> 23 <= 40 Seater)
C44: Trailers | D44: Montly rental
B45: 81 | C45: Trailer one ton (industrial type)
B46: 55 | C46: Trailer two ton (industrial type)
B47: 3 | C47: Trailer Light
B48: 31 | C48: Trailer Medium 1 and 2 axel (+10 ton, flat bed)
B49: 30 | C49: Trailer Medium 3 and 4 axel (+10 ton, flat bed)
E52: Weighted Average Price
B59: Material Handling Equipment (MHE) | D59: Quantities
B60: FML | C60: Equipment category | D60: 60 hr/month | E60: 80 hr/month | F60: 100 hr/month | G60: 120 hr/month | H60: 200 hr/month | I60: 250 hr/month | J60: 300 hr/month | K60: STR | L60: MM | M60: Check
B62: =SUM(D62:J62) -> 119 | C62: Forklift <= 3.5 Ton | D62: 71 | E62: 21 | F62: 23 | G62: 2 | H62: 2 | I62: 0 | J62: 0 | K62: 241 | L62: 241 | M62: =(SUM(D62:J62))-B62 -> 0
B63: =SUM(D63:J63) -> 59 | C63: Forklift >3.5 Ton <= 7 Ton | D63: 22 | E63: 16 | F63: 14 | G63: 4 | H63: 0 | I63: 0 | J63: 3 | K63: 59 | L63: 147 | M63: =(SUM(D63:J63))-B63 -> 0
B64: =SUM(D64:J64) -> 1 | C64: Forklift >7 Ton <= 10 Ton | D64: =1/7 -> 0 | E64: =1/7 -> 0 | F64: 0 | G64: 0 | H64: 0 | I64: 0 | J64: 0 | K64: 31 | L64: 31 | M64: =(SUM(D64:J64))-B64 -> 0
B65: =SUM(D65:J65) -> 3 | C65: Forklift >10 Ton <= 15 Ton | D65: 2 | E65: 1 | F65: 0 | G65: 0 | H65: 0 | I65: 0 | J65: 0 | K65: 8 | L65: 8 | M65: 0
B66: =SUM(D66:J66) -> 1 | C66: Forklift >15 Ton <= 25 Ton | D66: =1/7 -> 0 | E66: =1/7 -> 0 | F66: 0 | G66: 0 | H66: 0 | I66: 0 | J66: 0 | K66: 7 | L66: 7 | M66: 0
B67: 1 | C67: Forklift >25 Ton <= 45 Ton | D67: =1/7 -> 0 | E67: 0 | F67: 0 | G67: 0 | H67: 0 | I67: 0 | J67: 0 | K67: 5 | L67: 5 | M67: =(SUM(D67:J67))-B67 -> 0
B68: =SUM(D68:J68) -> 1 | C68: Front End Loader | D68: 0 | E68: 0 | F68: 0 | G68: 0 | H68: 1 | I68: 0 | J68: 0 | K68: 20 | L68: 20 | M68: 0
B69: =SUM(D69:J69) -> 37 | C69: Terminal Tractor/Haulers | D69: 4 | E69: 2 | F69: 2 | G69: 0 | H69: 29 | I69: 0 | J69: 0 | K69: 33 | L69: 33 | M69: 0
B70: =SUM(D70:J70) -> 49 | C70: Reach Stacker | D70: 4 | E70: 0 | F70: 14 | G70: 4 | H70: 22 | I70: 4 | J70: 1 | K70: 28 | L70: 28 | M70: 0
C71: Trailers | D71: Montly rental
B72: 1 | C72: Trailer - Industrial Type (One ton) | D72: 1 | K72: 0 | L72: 17 | M72: 0
B73: 1 | C73: Trailer - Industrial Type (Two ton) | D73: 1 | K73: 0 | L73: 0 | M73: 0
B74: 1 | C74: Trailer Light (Luggage trailers) | D74: 1 | K74: 0 | L74: 193 | M74: 0
B75: 33 | C75: Trailer Medium 1 and 2 axels (+10 Ton, flat bed) | D75: 33 | K75: 0 | L75: 1 | M75: 0
B76: 1 | C76: Trailer Heavy duty 3 and 4 axels (+10 Ton, flat bed) | D76: 1 | K76: 0 | L76: 9 | M76: 0
